Cogmind - Beta 13 @@@ ROGUE MODE // 2024.05.22 @ 00:27:23 Player: H3-RMN Result: Destroyed by Architect with Modified Sigix Sheargun Performance ------------- Evolutions (9) 4500 Regions Visited (31) 6200 Robots Destroyed (312) 1560 Value Destroyed (17299) 17299 Prototype IDs (76) 1520 Alien Tech Used (16) 3200 Bonus (13891) 13891 TOTAL SCORE: 48170 Bonus ------- High Alert Combat Kills 4627 Follower Combat Kills 5494 Network Hubs Disabled 800 Met Data Miner 300 Met Zhirov 300 Built Enhanced Grunts 300 A7 Reached Mainframe 300 Met R17 at Cetus 500 Met R17 at Research 2000 Destroyed A8 300 Friendly Fire -1030 Cogmind --------- Core Integrity 0/1600 Matter 135/300 Energy 580/580 System Corruption 0% Temperature Cool (1) Movement Walking (180) Ox1 Location -1/Access_0 Parts ------- > --- POWER (2) -------- Light Quantum Reactor Zero-point Reactor > --- PROPULSION (5) --- Biometal Leg Biometal Leg Biometal Leg Compact Wheel Compact Wheel > --- UTILITY (13) ----- Medium Storage Unit Advanced Launcher Guidance Computer Experimental Core Analyzer Improved Armor Integrity Analyzer Matter Filter Matter Filter Experimental Reaction Control System Advanced Phase Shifter Improved Utility Shielding SHELL Armor Experimental EM Disruption Field > --- WEAPON (5) ------- Point Singularity Launcher Point Singularity Launcher Point Singularity Launcher Point Singularity Launcher Z-bomb Delivery System > --- INVENTORY (10) --- Small Matter Pod (0) Experimental Matter Compressor (500) High-powered Tractor Beam Field Recycling Unit (100) Microwarp Drive Core Cannon Enhanced Force Lance Peak State ------------ > --- POWER ------------ Quantum Reactor Particle-Antimatter Reactor > --- PROPULSION ------- Flying NPT-ITA Exoskeleton > --- UTILITY ---------- Armored Scrap Engine Huge Storage Unit Experimental Targeting Computer Improved Armor Integrity Analyzer Experimental Reaction Control System Centrium Medium Armor Plating Experimental EM Disruption Field Advanced Force Field Advanced Hacking Suite System Mapper Microwarp Drive > --- WEAPON ----------- Helical Railgun Core Stripper Sigix Broadsword > --- INVENTORY -------- Zero-point Reactor Experimental Coolant Injector Experimental Energy Well Matter Compressor Experimental Matter Compressor Advanced Launcher Guidance Computer Experimental Core Analyzer Matter Filter Matter Filter Matter Filter Experimental Utility Shielding Centrium Medium Armor Plating SHELL Armor Dimensional Node Initializer High-powered Transdimensional Reconstructor Subatomic Replicator Core Cannon Point Singularity Launcher Point Singularity Launcher Point Singularity Launcher Point Singularity Launcher Z-bomb Delivery System [Rating: 257] Favorites ----------- Power Constructs Engine Subdweller Power Source Power Core Neutrino Core Reactor Constructs Propulsion Constructs Treads Light Treads Leg Biometal Leg Wheel Wheel Hover Unit Improved Antigrav System Flight Unit Constructs Utility Armored Scrap Engine Device Armored Scrap Engine Storage Large Storage Unit Processor 0b10 Decoder Chip [Looter] Hackware Improved Hacking Suite Protection Reflective Plating Artifact Microwarp Drive Weapon Constructs Energy Gun Constructs Energy Cannon Constructs Ballistic Gun Subdweller Machine Gun Ballistic Cannon Graviton Cannon Launcher Grenade Launcher Special Weapon Improved Plasma Cutter Impact Weapon Core Stripper Slashing Weapon Sigix Broadsword Piercing Weapon Plasma Lance Special Melee Weapon Advanced Datajack Build | -11 -10 -10 -10 -8 -6 -6 -6 -6 -6 -6 -5 -5 -5 -5 -5 -5 -4 -4 -4 -4 -4 -4 -3 -3 -3 -2 -2 -2 -1 -1 -1 ------- Run | Yrd Mat Min Sub Rec Fac Was Fac Low Low Dat Pro Fac Ext Cet Arc Hub Fac Was Fac Upp Upp Zhi Pro Res Tes Res Qua Sec Acc Com Ac0 Slots Evolved 18 | . . . . . 8 . . . . . . 2 . . . . 2 . . . . . . 2 . 2 . . 2 . . Power 1 | . . . . . . . . . . . . 1 . . . . . . . . . . . . . . . . . . . Propulsion 3 | . . . . . 2 . . . . . . . . . . . . . . . . . . 1 . . . . . . . Utility 11 | . . . . . 5 . . . . . . . . . . . 2 . . . . . . 1 . 1 . . 2 . . Weapon 3 | . . . . . 1 . . . . . . 1 . . . . . . . . . . . . . 1 . . . . . Parts Attached 330 | 8 9 4 25 2 35 2 8 . 3 . 1 3 11 2 5 13 7 1 7 1 3 2 . 38 8 23 33 23 21 32 . Power 18 | 1 1 . 4 . 2 . . . . . . 1 1 . . . . . . . . . . . . . . 1 2 5 . Engine 8 | 1 1 . 4 . 2 . . . . . . . . . . . . . . . . . . . . . . . . . . Core 2 | . . . . . . . . . . . . 1 1 . . . . . . . . . . . . . . . . . . Reactor 8 | . . . . . . . . . . . . . . . . . . . . . . . . . . . . 1 2 5 . Propulsion 35 | 3 2 1 7 . 11 . . . . . . . 1 . . . 1 . . . . . . 1 . . . . . 8 . Treads 12 | 1 1 . 3 . 4 . . . . . . . 1 . . . 1 . . . . . . 1 . . . . . . . Leg 4 | . . . . . 1 . . . . . . . . . . . . . . . . . . . . . . . . 3 . Wheel 18 | 2 1 1 4 . 6 . . . . . . . . . . . . . . . . . . . . . . . . 4 . Hover 1 | . . . . . . . . . . . . . . . . . . . . . . . . . . . . . . 1 . Flight . | . . . . . . . . . . . . . . . . . . . . . . . . . . . . . . . . Utility 198 | 2 3 1 . 1 19 2 8 . 3 . 1 2 9 2 5 11 6 . 6 1 3 2 . 31 5 17 22 14 12 10 . Device 117 | 1 . . . . 10 1 6 . 2 . . 1 8 1 1 9 3 . 5 1 2 1 . 14 3 11 17 8 6 6 . Storage 11 | 1 1 . . . . . 1 . . . . . . . . 1 . . . . . . . 2 1 1 . . 1 2 . Processor 13 | . . . . . 3 . . . . . . 1 1 . . . . . . . 1 . . 4 . . 1 . 2 . . Hackware 15 | . . . . . . . . . . . 1 . . . 2 . 2 . . . . . . 8 1 1 . . . . . Protection 37 | . 2 1 . 1 6 1 1 . 1 . . . . 1 2 1 1 . 1 . . 1 . 3 . 4 2 3 3 2 . Artifact 5 | . . . . . . . . . . . . . . . . . . . . . . . . . . . 2 3 . . . Weapon 79 | 2 3 2 14 1 3 . . . . . . . . . . 2 . 1 1 . . . . 6 3 6 11 8 7 9 . Energy Gun 11 | 1 . . 6 1 1 . . . . . . . . . . . . . . . . . . . . 1 . . . 1 . Energy Cannon 8 | . . . . . . . . . . . . . . . . . . . . . . . . . . 1 2 1 1 3 . Ballistic Gun 21 | 1 2 1 4 . 2 . . . . . . . . . . . . . . . . . . 3 1 2 . 3 2 . . Ballistic Cannon 5 | . . . . . . . . . . . . . . . . . . . . . . . . . . 1 3 1 . . . Launcher 26 | . 1 1 4 . . . . . . . . . . . . 2 . 1 . . . . . 1 1 1 3 3 4 4 . Special Weapon 1 | . . . . . . . . . . . . . . . . . . . . . . . . . 1 . . . . . . Impact Weapon 1 | . . . . . . . . . . . . . . . . . . . . . . . . . . . 1 . . . . Slashing Weapon 2 | . . . . . . . . . . . . . . . . . . . . . . . . . . . 2 . . . . Piercing Weapon 3 | . . . . . . . . . . . . . . . . . . . . . . . . 2 . . . . . 1 . Special Melee Weapon 1 | . . . . . . . . . . . . . . . . . . . 1 . . . . . . . . . . . . Unidentified Prototypes 37 | . . . . . 1 . 1 . . . . . . 1 . 2 . 1 . . . 1 . 5 4 4 6 10 . 1 . Corrupted Parts 2 | . . . . . . . . . . . 1 . . . . . . . . . . . . 1 . . . . . . . System Corruption 10 | . . . . . . . . . . . 5 . . . . . . . . . . . . 5 . . . . . . . Parts Lost 46 | . 3 1 1 . 11 . . . . . . . 5 . . 2 4 . . 1 . . . 7 1 4 2 2 2 . . Power 5 | . . . . . 2 . . . . . . . . . . 1 . . . . . . . 1 . . . 1 . . . Propulsion 8 | . 1 . . . 5 . . . . . . . 2 . . . . . . . . . . . . . . . . . . Utility 11 | . 1 . . . 3 . . . . . . . 2 . . . . . . 1 . . . 1 . . 2 . 1 . . Weapon 22 | . 1 1 1 . 1 . . . . . . . 1 . . 1 4 . . . . . . 5 1 4 . 1 1 . . Highest Loss Streak 3 | . 3 1 1 . 3 . . . . . . . 3 . . 1 3 . . 1 . . . 3 1 1 1 1 2 . . To Critical Strikes 2 | . . . . . . . . . . . . . . . . . 1 . . . . . . . . 1 . . . . . Average Slot Usage (%) 74 | . 98 99 99 100 71 73 72 73 73 73 73 70 74 74 69 69 68 64 71 72 68 72 73 69 70 70 65 65 66 69 . Engine 2 | . 14 14 13 14 5 1 . . . . . 2 4 2 . . . 1 . . . . . . . . . . . . . Reactor 3 | . . . . . . 1 6 6 6 6 6 5 2 3 5 5 5 3 4 5 5 5 5 4 4 4 4 5 7 5 . Treads 3 | . 14 14 14 14 6 . . . . . . . 3 9 . 5 2 . . . 2 5 5 3 . . . . . . . Leg 1 | . . . . . 1 2 . . . . . . 2 . 4 . . . . . . . . . . . . . . 2 . Wheel 2 | . 13 14 14 14 5 3 . . . . . . . . . . . . . . . . . . . . . . . 3 . Flight 1 | . . . . . . . 5 6 6 6 6 5 1 . . . 1 5 5 4 . . . . 4 4 4 4 4 2 . Device 13 | . 5 . . . 10 20 24 26 26 26 26 12 17 17 16 10 13 15 15 15 21 20 21 11 8 11 13 15 16 13 . Storage 6 | . 14 14 14 14 6 6 6 6 6 6 6 5 5 5 5 5 5 5 5 5 5 5 5 4 4 4 4 4 3 4 . Processor 7 | . . . . . 12 6 1 . . . . 4 8 11 10 . . . . . . 5 5 6 14 13 13 8 8 12 . Hackware 4 | . . . . . . . . . . . . 3 . . . 11 21 21 20 15 10 8 5 17 14 13 8 8 6 . . Protection 3 | . 7 14 14 14 8 6 6 6 5 6 6 5 2 . . 4 . . . 5 . 1 5 . . 1 . 4 4 6 . Energy Gun 7 | . 7 . 8 28 7 12 6 6 6 6 6 5 8 9 10 5 2 6 11 5 5 5 5 8 3 2 . . . . . Energy Cannon 1 | . . . . . 1 . . . . . . . . 2 . . 12 . . 12 15 15 15 5 . 3 3 . . 4 . Ballistic Gun 6 | . 16 14 11 . 2 . 5 6 6 6 6 5 5 6 11 14 2 . . . . . . . 8 4 . 3 1 . . Ballistic Cannon 1 | . . . . . 1 6 6 6 6 6 6 5 6 3 . . . 5 6 1 . . . . . 2 3 . . . . Launcher 1 | . 3 13 7 . . . . . . . . . . . . 1 . . . . . . . . . . . . 4 7 . Naked Turns . | . . . . . . . . . . . . . . . . . . . . . . . . . . . . . . . . Heaviest Build 200 | 12 31 31 35 37 54 54 59 59 59 57 57 68 78 88 88 91 91 105 97 108 108 109 109 142 151 176 175 175 200 155 . Greatest Support 223 | 20 16 16 20 10 58 64 123 123 123 123 123 123 123 123 89 89 177 118 118 118 171 171 171 213 213 213 213 223 223 115 . Greatest Overweight (x) 29 | 1 2 3 3 3 12 1 . . . . . . 1 1 29 1 23 . . . . . . . . . . . 1 5 . Average Overweight (x) 1 | . 1 2 1 3 1 . . . . . . . . . 16 . . . . . . . . . . . . . . . . Largest Inventory Capacity 25 | 8 15 15 15 15 15 15 15 15 15 15 15 15 15 15 15 15 15 15 15 15 15 15 15 25 25 25 25 25 25 10 10 Average Capacity 16 | 7 12 15 15 15 15 15 15 15 15 15 15 15 15 15 15 15 15 15 15 15 15 15 15 20 25 25 25 25 22 9 10 Most Carried 25 | 6 15 15 15 15 15 15 15 15 15 15 15 15 15 15 15 15 15 15 15 15 15 15 15 25 25 25 25 25 25 10 9 Average Carried 16 | 2 8 14 14 14 14 14 14 14 14 15 15 14 13 14 14 14 14 14 14 14 14 14 15 19 24 24 24 24 21 8 9 Final Capacity 25 | 8 15 15 15 15 15 15 15 15 15 15 15 15 15 15 15 15 15 15 15 15 15 15 15 25 25 25 25 25 5 10 10 Final Carried 25 | 5 15 14 14 15 14 15 15 15 15 15 15 14 15 15 15 15 15 15 15 14 15 15 15 25 25 25 25 25 5 9 9 Scrap Engine Consumption 402 | . . . . . 65 30 12 4 3 . 2 5 67 22 4 9 19 30 22 2 . 3 2 74 7 7 7 6 . . . Constructs Created 19 | . . . . . 8 . . . . . . . 2 . . 1 1 3 . 1 . . . 2 . 1 . . . . . Constructs Modified 87 | . . . . . 11 6 2 . . . . . 18 12 4 1 7 2 4 6 2 . . 7 . . . . 5 . . Class Distribution -------------------- 32% | Commander-Construct 18% | Mutant 16% | Hacker-Construct 12% | Construct 6% | Hacker-Gunner 5% | Hacker-Mutant 3% | Scavenger-Gunner Dominant Class ---------------- Mutant | -10/Materials Mutant | -10/Mines Mutant | -10/Subcaves Mutant | -8/Recycling Mutant | -6/Factory Construct | -6/Waste Construct | -6/Factory Construct | -6/Lower Caves Construct | -6/Lower Caves Construct | -6/Data Miner Construct | -5/Proximity Caves Construct | -5/Factory Commander-Construct | -5/Extension Commander-Construct | -5/Cetus Commander-Construct | -5/Archives Scavenger-Construct | -5/Hub_04(d) Hacker-Construct | -4/Factory Hacker-Construct | -4/Waste Hacker-Construct | -4/Factory Hacker-Construct | -4/Upper Caves Hacker-Construct | -4/Upper Caves Scavenger-Construct | -4/Zhirov Scavenger-Construct | -3/Proximity Caves Hacker-Construct | -3/Research Hacker-Construct | -3/Testing Hacker-Gunner | -2/Research Hacker-Gunner | -2/Quarantine Hacker-Mutant | -2/Section 7 Hacker-Mutant | -1/Access Scavenger-Gunner | -1/Command Scavenger-Gunner | -1/Access_0 Resources | -11 -10 -10 -10 -8 -6 -6 -6 -6 -6 -6 -5 -5 -5 -5 -5 -5 -4 -4 -4 -4 -4 -4 -3 -3 -3 -2 -2 -2 -1 -1 -1 ----------- Run | Yrd Mat Min Sub Rec Fac Was Fac Low Low Dat Pro Fac Ext Cet Arc Hub Fac Was Fac Upp Upp Zhi Pro Res Tes Res Qua Sec Acc Com Ac0 Matter Collected 9228 | 275 140 133 478 29 393 35 104 48 338 . 20 52 299 71 299 313 157 51 185 61 14 36 18 1575 99 438 736 647 1129 1055 . Remotely 40 | . . . . . . . . . . . . . . . . . . . . . . . . . . . . . . 40 . Salvage Created 14383 | 52 302 188 619 . 1877 . 229 62 215 . 43 180 1659 257 452 1234 1080 . 279 82 . 121 86 1754 188 1065 419 1002 35 903 . Parts 689 | 6 20 8 36 . 70 . 5 3 8 . 1 9 73 16 38 53 31 . 16 3 . . 5 55 18 50 40 49 2 74 . Haulers Intercepted 16 | . 1 . . . 2 . 2 . . . . . 4 . . 1 1 . 1 . . . . 2 . 1 . . 1 . . Recyclers Shooed 9 | . 1 1 . . 5 . . . . . . . . . . 1 . . . . . . . 1 . . . . . . . Parts Field Recycled 34 | . . . . . . . . . . . . . . . . . . . . . . . . . . . . . . 34 . Retrieved Matter 165 | . . . . . . . . . . . . . . . . . . . . . . . . . . . . . . 165 . Parts Self-Destructed 52 | . . . 6 . . . . 15 12 . 13 . . . . . . . . 3 . . 3 . . . . . . . . Prevented 3 | . . . . . . . . . . . . . . . . . . . . 2 . . 1 . . . . . . . . Kills | -11 -10 -10 -10 -8 -6 -6 -6 -6 -6 -6 -5 -5 -5 -5 -5 -5 -4 -4 -4 -4 -4 -4 -3 -3 -3 -2 -2 -2 -1 -1 -1 ------- Run | Yrd Mat Min Sub Rec Fac Was Fac Low Low Dat Pro Fac Ext Cet Arc Hub Fac Was Fac Upp Upp Zhi Pro Res Tes Res Qua Sec Acc Com Ac0 Combat Hostiles Destroyed 238 | . 9 1 16 . 22 . 1 1 3 . 1 3 15 3 1 15 11 . 3 1 . . 1 19 5 16 16 23 30 19 3 Melee 31 | . . . . . . . . . . . . . . . . 1 . . . . . . . . 2 4 5 12 . 7 . Guns 74 | . 6 . 6 . 12 . 1 . 2 . 1 1 12 3 1 9 1 . 2 . . . . 11 . 5 . 1 . . . Cannons 37 | . . . . . 9 . . 1 1 . . 2 3 . . . 8 . 1 1 . . 1 3 . 3 1 . . 3 . AOE 84 | . 3 1 10 . . . . . . . . . . . . 5 1 . . . . . . . 3 3 10 8 30 7 3 Classes Destroyed 29 | 1 3 2 4 . 3 . . . 3 . . 2 2 1 . 2 . . . 1 . . . 2 . . 1 2 . . . Worker 17 | . . 2 . . 3 . . . . . . . 2 . . 1 . . . . . . . . . . . . 1 8 . Builder 3 | . . . . . . . . . . . . 1 . . . 1 . . . . . . . . . . . . 1 . . Tunneler 6 | 3 . 1 . . 2 . . . . . . . . . . . . . . . . . . . . . . . . . . Hauler 16 | . 1 . . . 2 . 2 . . . . . 4 . . 1 1 . 1 . . . . 2 . 1 . . 1 . . Recycler 7 | . . 1 . . 2 . . . . . . . 1 . . . 1 . . . . . . 1 . . . . 1 . . Minesweeper 1 | . . . . . . . . . 1 . . . . . . . . . . . . . . . . . . . . . . Mechanic 1 | . . . . . . . . . . . . . . . . . . . . . . . . . . . 1 . . . . Operator 14 | . . . . . . . . . . . . 1 . . 9 1 . . 1 . . . . . . . 1 . . 1 . Turret 2 | . . . 2 . . . . . . . . . . . . . . . . . . . . . . . . . . . . Watcher 5 | . . . . . . . . . . . . . . 1 . . . . . . . . . . . . 3 . . 1 . Swarmer 33 | . 3 . 3 . . . . . . . . . . . . . . . . . . . . . 3 3 3 . 18 . . Cutter 1 | . . . . . . . . . . . . . . . . . . . . . . . . . . . . 1 . . . Saboteur 2 | . . . . . . . . . . . . . . . . . . . . . . . . . . . . 1 . 1 . Grunt 83 | . 6 1 . . 14 . 1 . 1 . . 3 6 . . 8 8 . 1 . . . . 9 . 4 2 10 4 5 . Brawler 4 | . . . . . . . . . 1 . . . 1 . . . . . . . . . . . . . 1 1 . . . Duelist 6 | . . . . . . . . . . . . . . . . 2 . . . . . . . . . . 1 1 . 2 . Protector 1 | . . . . . . . . . . . . . 1 . . . . . . . . . . . . . . . . . . Sentry 21 | . . . . . 4 . . 1 . . . . 5 . 1 2 1 . 1 . . . 1 2 . 1 . 2 . . . Demolisher 2 | . . . . . . . . . . . . . 1 . . . . . . . . . . 1 . . . . . . . Specialist 1 | . . . . . . . . . . . . . . . . 1 . . . . . . . . . . . . . . . Hunter 19 | . . . . . 1 . . . . . . . . . . . 2 . . . . . . 2 . . 5 . 6 3 . Programmer 37 | . . . . . 3 . . . . . 1 . 1 . . 2 . . 1 . . . . . 2 7 4 6 2 8 . Behemoth 3 | . . . . . . . . . . . . . . . . . . . . 1 . . . 1 . 1 . . . . . Cetus Guard 3 | . . . . . . . . . . . . . . 3 . . . . . . . . . . . . . . . . . S7 Guard 1 | . . . . . . . . . . . . . . . . . . . . . . . . . . . . 1 . . . Enhanced Grunt 3 | . . . . . . . . . . . . . . . . 1 . . . . . . . . . . . . . . 2 Striker 3 | . . . . . . . . . . . . . . . . . . . . . . . . 3 . . . . . . . Executioner 1 | . . . . . . . . . . . . . . . . . . . . . . . . 1 . . . . . . . Artisan 2 | . . . 2 . . . . . . . . . . . . . . . . . . . . . . . . . . . . Cobbler 1 | . . . 1 . . . . . . . . . . . . . . . . . . . . . . . . . . . . Subdweller 13 | . . . 13 . . . . . . . . . . . . . . . . . . . . . . . . . . . . Thug 1 | . . . . . . . . . . . . . . . . 1 . . . . . . . . . . . . . . . Mutant 1 | . . . . . . . . . 1 . . . . . . . . . . . . . . . . . . . . . . Best Kill Streak 18 | 3 6 3 3 . 4 . 2 1 2 . 1 5 8 2 2 11 4 . 3 1 . . 1 4 3 3 8 5 18 10 8 Combat Bots Only 15 | . 5 1 3 . 4 . 1 1 2 . 1 3 4 2 1 11 4 . 1 1 . . 1 4 3 3 7 5 15 10 6 Max Kills in Single Turn 5 | 1 2 1 3 . 1 . 1 1 2 . 1 1 1 1 1 4 1 . 1 1 . . 1 1 3 3 4 3 4 5 3 Gunslinging 1 | . . . . . . . . . . . . . . . . 1 . . . . . . . . . . . . . . . Exploded 4 | . 2 1 3 . . . . . . . . . . . . 3 1 . . . . . . . 3 3 3 3 4 3 3 Melee 1 | . . . . . . . . . . . . . . . . 1 . . . . . . . . 1 1 1 1 . 1 . Uniques/NPCs Destroyed 1 | . . . . . . . . . . . . . . . . . . . . . . . . . . . . . . . 1 A8 (-1/Access_0) Combat | -11 -10 -10 -10 -8 -6 -6 -6 -6 -6 -6 -5 -5 -5 -5 -5 -5 -4 -4 -4 -4 -4 -4 -3 -3 -3 -2 -2 -2 -1 -1 -1 -------- Run | Yrd Mat Min Sub Rec Fac Was Fac Low Low Dat Pro Fac Ext Cet Arc Hub Fac Was Fac Upp Upp Zhi Pro Res Tes Res Qua Sec Acc Com Ac0 Hostile Shots Fired 2522 | . 56 6 70 8 312 . . 11 10 . 8 30 130 21 4 85 214 . 24 172 . . 6 157 56 191 130 244 374 201 2 Missed 988 | . 12 3 29 2 86 . . 4 4 . 7 17 43 3 2 18 69 . 14 70 . . 1 32 23 73 55 128 214 79 . Damage Taken 23675 | . 539 70 716 82 3022 . 80 68 66 . 16 179 1576 266 50 1560 1998 . 87 959 . . 61 3100 328 1401 1281 1716 3296 1081 77 Core 4170 | . 53 19 54 14 312 . . . 7 . . 26 130 14 . 116 274 . 6 78 . . 14 692 27 78 94 592 1208 323 39 Absorbed by Shields 7603 | . . . . . . . 17 72 20 . 5 38 424 230 52 . 709 . 92 764 . . 62 433 346 1457 871 1221 790 . . Reduced by Siege Mode 207 | . . . . . . . . . . . . . . . . 28 48 . . . . . . 131 . . . . . . . Redirected to Shielding 258 | . 5 4 10 . . . . . . . . . . . . . . . . . . . . 17 . . . . 154 43 25 Ignored by Resistances 4520 | . . . . . 240 . . 4 . . . 29 61 . . . . . . . . . . . . . 90 572 1191 2333 . Regen/Repaired (Parts) 8330 | . . . . . 709 191 61 . 12 . . . 515 369 82 123 1125 611 55 528 . . . 1304 . 45 633 429 1165 370 3 Core Remaining (%) 62 | 100 . . . 44 . . . . . . 62 . . . . 71 . . . . . . 67 . 44 . . 52 . . . Volleys Fired 796 | 9 33 13 114 . 163 . 9 7 11 . 4 12 53 9 75 35 31 1 8 7 . 3 2 63 . 27 18 9 23 56 1 Largest 5 | 2 2 2 2 . 3 . 3 3 3 . 3 3 4 4 4 4 4 2 4 4 . 2 4 4 . 4 1 1 2 2 5 Hottest 349 | 70 70 40 105 . 170 . 180 180 180 . 180 180 233 214 214 259 272 148 289 310 . 158 310 349 . 267 70 55 300 220 250 Shots Fired 1504 | 18 62 14 132 . 231 . 27 20 33 . 12 32 185 29 93 80 87 2 28 28 . 6 8 190 1 61 18 9 24 69 5 Gun 1001 | 18 58 13 113 . 199 . 18 13 22 . 8 20 132 19 93 76 14 1 17 7 . . 2 118 1 32 2 5 . . . Cannon 430 | . . . . . 32 . 9 7 11 . 4 12 53 10 . . 73 1 11 21 . 6 6 71 . 28 8 . 1 66 . Launcher 73 | . 4 1 19 . . . . . . . . . . . . 4 . . . . . . . 1 . 1 8 4 23 3 5 Special . | . . . . . . . . . . . . . . . . . . . . . . . . . . . . . . . . Kinetic 609 | 9 40 13 31 . 77 . 18 13 22 . 8 22 99 22 87 47 15 1 13 5 . . . 21 1 32 8 5 . . . Thermal 634 | 9 18 . 82 . 144 . 9 7 11 . 4 10 86 2 . 29 42 1 10 16 . 3 6 114 . 28 2 . 1 . . Explosive 69 | . 4 1 19 . . . . . . . . . . . . . . . . . . . . 1 . 1 8 4 23 3 5 Electromagnetic 192 | . . . . . 10 . . . . . . . . 5 6 4 30 . 5 7 . 3 2 54 . . . . . 66 . Robot Hit Streak 38 | 5 10 4 14 . 12 . 6 4 5 . 3 6 14 10 7 11 11 . 6 6 . 5 6 24 . 38 9 15 4 10 1 Robot Miss Streak 7 | 2 2 2 3 . 4 . 2 2 5 . 3 2 6 7 7 7 6 2 4 3 . 1 1 4 . 1 1 1 1 2 4 Penetration Max 2 | . . . . . 1 . . . . . . . 1 1 . 1 1 . . . . . . 2 . 1 . . . . . Secondary Targets 11 | . 2 . . . . . . . . . . . 4 1 . 2 . . . . . . . 2 . . . . . . . Max Gunslinging Chain 1 | . 1 . . . . . . . . . . . 1 1 . 1 . . . . . . . 1 . . . . . . . Shots Hit Robots 1065 | 10 44 10 54 . 166 . 14 10 16 . 5 20 131 15 52 40 50 . 13 18 . 5 6 137 3 67 37 48 18 75 1 Core Hits 594 | 4 19 7 38 . 68 . 5 3 11 . 2 5 64 11 23 38 23 . 12 6 . 2 2 44 6 33 29 30 49 48 12 Critical Kills 6 | . . 1 . . 2 . . . . . . . . . . . . . . . . . . 1 . 2 . . . . . Critical Parts Destroyed 5 | . . . . . . . . . . . . . . . . . . . 1 . . 2 . 1 . 1 . . . . . Critical Strikes 37 | . 2 1 1 . 9 . . 1 . . . . . . . . . . 1 . . 3 . 2 1 5 2 3 . 6 . Burn 11 | . 2 . 1 . 7 . . 1 . . . . . . . . . . . . . . . . . . . . . . . Meltdown 3 | . . . . . 2 . . . . . . . . . . . . . . . . . . . . 1 . . . . . Destroy 8 | . . 1 . . . . . . . . . . . . . . . . 1 . . 2 . 2 . 2 . . . . . Corrupt 3 | . . . . . . . . . . . . . . . . . . . . . . 1 . . . . . . . 2 . Sever 5 | . . . . . . . . . . . . . . . . . . . . . . . . . . . 2 3 . . . Impale 7 | . . . . . . . . . . . . . . . . . . . . . . . . . 1 2 . . . 4 . Melee Attacks 222 | . . . . . . . . . . . . . . . . . . . . . . . . 5 9 37 52 70 16 33 . Kinetic 25 | . . . . . . . . . . . . . . . . . . . . . . . . . . . 7 14 4 . . Impact . | . . . . . . . . . . . . . . . . . . . . . . . . . . . . . . . . Slashing 110 | . . . . . . . . . . . . . . . . . . . . . . . . . . . 42 56 12 . . Piercing 87 | . . . . . . . . . . . . . . . . . . . . . . . . 5 9 37 3 . . 33 . Sneak Attacks 6 | . . . . . . . . . . . . . . . . . . . . . . . . . . 1 . 1 1 3 . Combat Hostiles 3 | . . . . . . . . . . . . . . . . . . . . . . . . . . . . 1 . 2 . Follow-up Attacks 5 | . . . . . . . . . . . . . . . . . . . . . . . . . . . . 5 . . . Damage Inflicted 53389 | 105 600 195 1820 . 3707 . 383 242 591 . 168 611 3624 619 1900 2323 2259 . 517 655 . 180 201 4593 748 3592 4905 4883 8304 4082 1582 Guns 17213 | 105 477 116 955 . 2983 . 242 157 413 . 106 377 2641 390 1900 1552 424 . 271 148 . . 37 2732 . 1065 . 122 . . . Cannons 9394 | . . . . . 724 . 141 85 178 . 62 234 949 229 . . 1565 . 230 490 . 180 164 1730 . 1172 264 . . 997 . Explosions 19244 | . 123 79 865 . . . . . . . . . . . . 719 270 . 16 . . . . . 611 483 2883 1904 7954 1755 1582 Melee 7422 | . . . . . . . . . . . . . . . . . . . . . . . . 131 137 871 1758 2857 338 1330 . Ramming 116 | . . . . . . . . . . . . . 34 . . 52 . . . 17 . . . . . 1 . . 12 . . Kinetic 12786 | 33 309 116 332 . 1367 . 268 140 453 . 122 450 2279 522 1771 946 426 . 176 108 . . . 543 . 1154 576 695 . . . Thermal 11589 | 72 168 . 623 . 2228 . 115 102 138 . 46 161 1311 22 . 802 1129 . 183 421 . 105 167 2676 . 1083 . . . 37 . Explosive 18202 | . 123 79 865 . . . . . . . . . . . . . . . . . . . . . 611 483 2883 1904 7954 1718 1582 Electromagnetic 4159 | . . . . . 112 . . . . . . . . 75 129 523 704 . 158 109 . 75 34 1243 . . . . . 997 . Impact . | . . . . . . . . . . . . . . . . . . . . . . . . . . . . . . . . Slashing 4068 | . . . . . . . . . . . . . . . . . . . . . . . . . . . 1446 2284 338 . . Piercing 2469 | . . . . . . . . . . . . . . . . . . . . . . . . 131 137 871 . . . 1330 . Highest Corruption 12 | . . . . . 5 5 5 7 7 7 12 . . . . 11 . . . . . . . 7 8 2 6 . . . . Average Corruption 5 | . . . . . 3 5 5 5 7 7 7 . . . . 6 . . . . . . . 6 7 1 2 . . . . Corruption Purged 13 | . . . . . . . . . . . . . . . . 4 . . . . . . . . . 3 6 . . . . Corruption Blocked . | . . . . . . . . . . . . . . . . . . . . . . . . . . . . . . . . Effects 160 | . . . . . 21 9 16 13 16 3 6 . . . . 12 . . . . . . . 46 10 2 6 . . . . Message Errors 44 | . . . . . 4 1 6 3 8 1 4 . . . . . . . . . . . . 11 3 2 1 . . . . Matter Fused 38 | . . . . . 4 5 3 4 2 2 1 . . . . 1 . . . . . . . 9 5 . 2 . . . . Heat Flow Errors 19 | . . . . . 3 1 2 2 . . 1 . . . . 3 . . . . . . . 7 . . . . . . . Energy Discharges 17 | . . . . . 2 . 1 2 2 . . . . . . . . . . . . . . 9 . . 1 . . . . Parts Rejected 2 | . . . . . 1 . 1 . . . . . . . . . . . . . . . . . . . . . . . . Data Loss (minor) 17 | . . . . . 3 1 1 1 4 . . . . . . 1 . . . . . . . 5 . . 1 . . . . Data Loss (major) 6 | . . . . . 1 1 1 . . . . . . . . 1 . . . . . . . . 1 . 1 . . . . Misfires 3 | . . . . . . . . . . . . . . . . 1 . . . . . . . 1 1 . . . . . . Alerts 7 | . . . . . 2 . 1 . . . . . . . . 1 . . . . . . . 3 . . . . . . . Misdirections 2 | . . . . . . . . . . . . . . . . 2 . . . . . . . . . . . . . . . Weapon Failures 5 | . . . . . 1 . . 1 . . . . . . . 2 . . . . . . . 1 . . . . . . . Overload Shots . | . . . . . . . . . . . . . . . . . . . . . . . . . . . . . . . . Overflow Damage 2009 | . 4 . . . 52 . . . 13 . . 25 . . . . 87 . 16 . . 4 . 35 . 111 372 259 365 600 66 Projectiles 234 | . . . . . 52 . . . 13 . . 25 . . . . 20 . 16 . . 4 . 35 . 69 . . . . . Explosions 1058 | . 4 . . . . . . . . . . . . . . . 67 . . . . . . . . 6 213 106 365 231 66 Melee 717 | . . . . . . . . . . . . . . . . . . . . . . . . . . 36 159 153 . 369 . Knockbacks 19 | . . . . . 5 . . . 4 . 2 4 4 . . . . . . . . . . . . . . . . . . Impact . | . . . . . . . . . . . . . . . . . . . . . . . . . . . . . . . . Kinetic 19 | . . . . . 5 . . . 4 . 2 4 4 . . . . . . . . . . . . . . . . . . Secondary . | . . . . . . . . . . . . . . . . . . . . . . . . . . . . . . . . Self-Inflicted Damage 703 | . . 12 46 . . . . . . . . . . . . 21 168 . . . . . . . . . 104 113 156 83 . Shots 15 | . . 1 5 . . . . . . . . . . . . 2 2 . . . . . . . . . 1 1 1 2 . Rammed 7 | . . . . . . . . . . . . . 2 . . 2 . . . 1 . . . . . 1 . . 1 . . Targets Rammed 8 | . . . . . . . . . . . . . 2 . . 3 . . . 1 . . . . . 1 . . 1 . . Kicked . | . . . . . . . . . . . . . . . . . . . . . . . . . . . . . . . . Crushed 1 | . . . . . . . . . . . . . . . . 1 . . . . . . . . . . . . . . . Highest Temperature 646 | 100 319 . . . 312 87 191 219 174 . 248 516 425 142 249 523 433 12 306 196 . . 181 646 . 236 318 159 198 171 1 Average Temperature 118 | 50 135 . . . 116 49 56 71 80 . 74 214 126 52 108 169 175 8 105 108 . . 100 147 . 134 78 48 49 44 1 Received Heat Transfer 3526 | . 261 33 147 36 993 . . 8 . . . 103 470 13 4 232 328 . . 142 . . 4 239 67 96 39 76 154 81 . Effects 29 | . . . . . 5 . . . . . . 3 1 . . 6 5 . . . . . . 9 . . . . . . . Shutdowns 4 | . . . . . . . . . . . . . 1 . . 2 1 . . . . . . . . . . . . . . Energy Bleed 6 | . . . . . 2 . . . . . . 1 . . . . 2 . . . . . . 1 . . . . . . . Interference 11 | . . . . . 3 . . . . . . 2 . . . 1 . . . . . . . 5 . . . . . . . Matter Decay 1 | . . . . . . . . . . . . . . . . . . . . . . . . 1 . . . . . . . Short Circuit 2 | . . . . . . . . . . . . . . . . 2 . . . . . . . . . . . . . . . Damage (minor) 2 | . . . . . . . . . . . . . . . . . 2 . . . . . . . . . . . . . . Damage (major) 1 | . . . . . . . . . . . . . . . . 1 . . . . . . . . . . . . . . . Damage (core) 2 | . . . . . . . . . . . . . . . . . . . . . . . . 2 . . . . . . . Siege Activations 6 | . . . . . . . . . . . . . . . . 1 1 . . . . . . 4 . . . . . . . Total Turns 117 | . . . . . . . . . . . . . . . . 9 31 . . . . . . 77 . . . . . . . Longest Duration 34 | . . . . . . . . . . . . . . . . 9 31 . . . . . . 34 . . . . . . . Robots Corrupted 7 | . . . . . . . . . . . . . . . . . . . . . . . . 5 . . . . . 2 . Combat Hostiles 7 | . . . . . . . . . . . . . . . . . . . . . . . . 5 . . . . . 2 . Parts Fried 23 | . . . . . . . . . . . . . . . . 1 3 . . . . . . 6 . . . . . 13 . Impact Corruptions . | . . . . . . . . . . . . . . . . . . . . . . . . . . . . . . . . Robots Melted 4 | . . . . . 2 . . . . . . . . . . . 1 . . . . . . . . 1 . . . . . Combat Hostiles 3 | . . . . . 1 . . . . . . . . . . . 1 . . . . . . . . 1 . . . . . Parts Melted 20 | . 1 . 1 . 9 . . . . . . 2 . . . . 1 . . . . . . 1 . 3 . 2 . . . Heat Transferred 11449 | 222 629 . 992 . 3882 . 185 222 222 . 74 259 888 37 . 816 779 . . 333 . 111 148 1415 . 185 . . . 50 . Parts Sabotaged . | . . . . . . . . . . . . . . . . . . . . . . . . . . . . . . . . Parts Stolen . | . . . . . . . . . . . . . . . . . . . . . . . . . . . . . . . . Parts Stripped 8 | . . . . . . . . . . . . . . . . . . . . . . . . . . . . 8 . . . Power Chain Reactions 4 | . . . . . . . . . . . . . . . . 3 . . . . . . . . . . . . . 1 . Alert | -11 -10 -10 -10 -8 -6 -6 -6 -6 -6 -6 -5 -5 -5 -5 -5 -5 -4 -4 -4 -4 -4 -4 -3 -3 -3 -2 -2 -2 -1 -1 -1 ------- Run | Yrd Mat Min Sub Rec Fac Was Fac Low Low Dat Pro Fac Ext Cet Arc Hub Fac Was Fac Upp Upp Zhi Pro Res Tes Res Qua Sec Acc Com Ac0 Peak Influence 2341 | 15 328 226 . 251 272 95 991 . . . . 1159 1303 1015 768 1613 878 166 1505 . . . . 223 298 671 885 642 2341 1956 . Initial 1497 | . 9 127 . 170 205 95 . . . . . 580 567 729 406 . 782 136 116 . . . . 13 125 27 306 332 220 1497 . Average 347 | 5 168 95 . 219 118 82 439 . . . . 820 808 896 127 949 293 144 922 . . . . 56 181 301 466 354 965 1757 . Maximum Alert Level 5 | . 1 1 . 1 1 . 3 . . . . 4 4 3 3 5 3 . 4 . . . . 1 1 2 3 2 5 5 . Low Security (%) 54 | 100 58 97 . 6 73 100 28 . . . . . . . 76 18 59 100 9 . . . . 97 53 35 . 25 . . . Level 1 14 | . 41 2 . 93 26 . 24 . . . . . . . 9 6 16 . 8 . . . . 2 46 35 32 25 28 . . Level 2 13 | . . . . . . . 19 . . . . 6 29 . 11 3 1 . 4 . . . . . . 29 63 48 14 . . Level 3 9 | . . . . . . . 27 . . . . 79 56 100 3 18 23 . 48 . . . . . . . 3 . 10 . . Level 4 4 | . . . . . . . . . . . . 14 14 . . 51 . . 29 . . . . . . . . . 33 25 . Level 5 3 | . . . . . . . . . . . . . . . . 1 . . . . . . . . . . . . 13 74 . High Security . | . . . . . . . . . . . . . . . . . . . . . . . . . . . . . . . . Max Security . | . . . . . . . . . . . . . . . . . . . . . . . . . . . . . . . . Squads Dispatched 83 | . 3 . . . 7 . 4 . 1 . . 2 3 . . 7 4 . 9 . . . . 11 1 5 4 8 8 6 . Investigation 24 | . 3 . . . . . 1 . . . . . . . . 3 2 . 4 . . . . 6 1 1 1 1 1 . . Extermination 18 | . . . . . 3 . 1 . . . . . . . . 1 . . 2 . . . . . . 3 2 3 1 2 . Reinforcement 25 | . . . . . 2 . 2 . . . . 2 1 . . 1 2 . 3 . . . . 5 . 1 . 2 3 1 . Assault 13 | . . . . . . . . . 1 . . . 2 . . 2 . . . . . . . . . . 1 2 2 3 . Garrison 3 | . . . . . 2 . . . . . . . . . . . . . . . . . . . . . . . 1 . . Intercept . | . . . . . . . . . . . . . . . . . . . . . . . . . . . . . . . . Searches Triggered 1 | . . . . . . . . . . . . . . . . . . . . . . . . . . . . . 1 . . Data Miner Redirects 2 | . . . . . . . . . . . . . . . . . . . . . . . . . . . . . . 2 . Construction Impeded 4 | . . . . . 1 . 1 . . . . 1 1 . . . . . . . . . . . . . . . . . . Haulers Reinforced 9 | . . . . . 1 . 1 . . . . . . . . . 1 . 1 . . . . 3 . . . . 2 . . Active Scanning Responses . | . . . . . . . . . . . . . . . . . . . . . . . . . . . . . . . . Cargo Convoy Interrupts . | . . . . . . . . . . . . . . . . . . . . . . . . . . . . . . . . Stealth | -11 -10 -10 -10 -8 -6 -6 -6 -6 -6 -6 -5 -5 -5 -5 -5 -5 -4 -4 -4 -4 -4 -4 -3 -3 -3 -2 -2 -2 -1 -1 -1 --------- Run | Yrd Mat Min Sub Rec Fac Was Fac Low Low Dat Pro Fac Ext Cet Arc Hub Fac Was Fac Upp Upp Zhi Pro Res Tes Res Qua Sec Acc Com Ac0 Distress Signals 21 | . 1 . . . 2 . . . . . . 1 2 2 . 1 1 . 1 . . . . 4 . . . . 5 1 . Communications Jammed . | . . . . . . . . . . . . . . . . . . . . . . . . . . . . . . . . Distress Signals . | . . . . . . . . . . . . . . . . . . . . . . . . . . . . . . . . Times Spotted 655 | . 14 2 35 2 26 . 9 6 16 . 12 6 50 8 29 36 24 . 22 15 . . 3 39 15 40 43 54 114 34 1 Peak Tracking Total 30 | . 8 2 4 2 6 . 3 5 8 . 4 6 8 5 2 8 6 . 5 13 . . 2 4 8 9 8 13 30 6 1 Tactical Retreats 61 | . . . 3 . . . . . . . . 1 2 . . . 5 . . 2 . . . 1 2 5 15 4 20 1 . Traps | -11 -10 -10 -10 -8 -6 -6 -6 -6 -6 -6 -5 -5 -5 -5 -5 -5 -4 -4 -4 -4 -4 -4 -3 -3 -3 -2 -2 -2 -1 -1 -1 ------- Run | Yrd Mat Min Sub Rec Fac Was Fac Low Low Dat Pro Fac Ext Cet Arc Hub Fac Was Fac Upp Upp Zhi Pro Res Tes Res Qua Sec Acc Com Ac0 Traps Triggered 14 | . 1 . 2 . 1 . . . . . . . 2 . . 2 2 . . . . . . 3 . 1 . . . . . Indirectly . | . . . . . . . . . . . . . . . . . . . . . . . . . . . . . . . . Trap Hack Attempts 22 | . . . . . . . . . . . . . . . . . . . 22 . . . . . . . . . . . . Triggered . | . . . . . . . . . . . . . . . . . . . . . . . . . . . . . . . . Disarmed . | . . . . . . . . . . . . . . . . . . . . . . . . . . . . . . . . Reprogrammed 20 | . . . . . . . . . . . . . . . . . . . 4 . . . . . 16 . . . . . . Reused 1 | . . . 1 . . . . . . . . . . . . . . . . . . . . . . . . . . . . Traps Extracted 4 | . . . . . . . . . . . . . . . . . . . 4 . . . . . . . . . . . . Installed 2 | . . . 2 . . . . . . . . . . . . . . . . . . . . . . . . . . . . Triggered 3 | . . . . . . . . . . . . . . . . . . . . 1 . . 1 1 . . . . . . . Most Traps Carried 4 | . . . . . . . . . 3 3 3 3 3 3 3 3 3 3 4 4 4 4 4 4 . . . . . . . Objects Rigged 1 | . . . . . . . . . . . . . . . . . . . . . . . . . 1 . . . . . . Exploded 1 | . . . . . . . . . . . . . . . . . . . . . . . . . 1 . . . . . . Machines | -11 -10 -10 -10 -8 -6 -6 -6 -6 -6 -6 -5 -5 -5 -5 -5 -5 -4 -4 -4 -4 -4 -4 -3 -3 -3 -2 -2 -2 -1 -1 -1 ---------- Run | Yrd Mat Min Sub Rec Fac Was Fac Low Low Dat Pro Fac Ext Cet Arc Hub Fac Was Fac Upp Upp Zhi Pro Res Tes Res Qua Sec Acc Com Ac0 Machines Disabled 91 | . 2 2 3 . 1 . 12 . 2 . . 1 4 . 4 7 7 . 20 . . . . 1 5 . 10 4 5 1 . Max in Single Turn 7 | . 1 2 2 . 1 . 1 . 1 . . . 1 . 1 1 7 . 3 . . . . 1 1 . 1 1 2 1 . Garrison Access 12 | . . . . . 1 . . . . . . 1 . . . 1 1 . 1 . . . . 3 . . 1 . 3 . . Network Hub 4 | . . . . . . . . . . . . . . . . 4 . . . . . . . . . . . . . . . Machines Repaired . | . . . . . . . . . . . . . . . . . . . . . . . . . . . . . . . . Machines Dismantled 1 | . . . . . . . . . . . . . . . . . . . . . . . . . 1 . . . . . . Machines Sabotaged 3 | . . . . . . . . . . . . . . . . 3 . . . . . . . . . . . . . . . Overloaded Fab Kills . | . . . . . . . . . . . . . . . . . . . . . . . . . . . . . . . . Hacking | -11 -10 -10 -10 -8 -6 -6 -6 -6 -6 -6 -5 -5 -5 -5 -5 -5 -4 -4 -4 -4 -4 -4 -3 -3 -3 -2 -2 -2 -1 -1 -1 --------- Run | Yrd Mat Min Sub Rec Fac Was Fac Low Low Dat Pro Fac Ext Cet Arc Hub Fac Was Fac Upp Upp Zhi Pro Res Tes Res Qua Sec Acc Com Ac0 Machines Accessed 125 | . 3 . 1 5 10 . 8 . . 4 . 4 3 1 . 5 8 . 8 . 1 4 . 14 7 6 14 8 8 3 . Terminals 72 | . 2 . . 3 5 . 4 . . . . 3 3 1 . 4 3 . 5 . . . . 5 7 4 11 7 3 2 . Fabricators 12 | . . . . . 1 . 1 . . . . . . . . . 2 . 2 . . . . 4 . 1 . . 1 . . Repair Stations 4 | . . . . . . . 1 . . . . . . . . . . . . . . . . 1 . . 1 . . 1 . Recycling Units 7 | . 1 . . 2 2 . 1 . . . . . . . . . . . . . . . . 1 . . . . . . . Scanalyzers 7 | . . . . . 1 . . . . . . . . . . . 2 . . . . . . . . 1 1 1 1 . . Garrison Access 13 | . . . . . 1 . 1 . . . . 1 . . . 1 1 . 1 . . . . 3 . . 1 . 3 . . Total Hacks 566 | . 10 . 3 17 28 . 17 . . 31 . 6 7 2 . 12 63 . 54 . 1 16 . 59 62 33 55 54 26 10 . Successful 368 | . 5 . 3 9 14 . 6 . . 31 . 4 3 1 . 8 50 . 34 . 1 16 . 44 44 17 32 31 11 4 . Failed 196 | . 5 . . 7 14 . 11 . . . . 2 4 1 . 4 13 . 19 . . . . 15 18 16 23 23 15 6 . Catastrophic 43 | . 1 . . 1 4 . 5 . . . . 1 . . . 1 3 . 4 . . . . 2 4 2 6 1 6 2 . Database Lockouts 2 | . . . . 1 . . . . . . . . . . . . . . 1 . . . . . . . . . . . . Manual 243 | . 8 . . 6 4 . 5 . . . . 3 3 1 . 7 38 . 30 . . . . 21 33 14 28 32 6 4 . Terminals 380 | . 7 . . 10 13 . 9 . . . . 5 7 2 . 11 39 . 46 . . . . 34 62 20 45 52 14 4 . Fabricators 49 | . . . . . 2 . 2 . . . . . . . . . 10 . 7 . . . . 18 . 5 . . 5 . . Repair Stations 15 | . . . . . . . 2 . . . . . . . . . . . . . . . . 2 . . 5 . . 6 . Recycling Units 18 | . 3 . . 7 3 . 3 . . . . . . . . . . . . . . . . 2 . . . . . . . Scanalyzers 37 | . . . . . 9 . . . . . . . . . . . 13 . . . . . . . . 8 4 2 1 . . Garrison Access 16 | . . . . . 1 . 1 . . . . 1 . . . 1 1 . 1 . . . . 3 . . 1 . 6 . . Terminal Hacks 206 | . 1 . 3 3 2 . 3 . . 31 . 2 1 1 . 3 23 . 24 . 1 16 . 16 33 5 15 21 2 . . Record 22 | . . . 3 . . . . . . 11 . . . . . . . . . . . 5 . . . . 3 . . . . Part Schematic 36 | . . . . 1 . . 1 . . 11 . . . . . . 8 . 2 . . 3 . 5 5 . . . . . . Robot Schematic 8 | . . . . . . . . . . 6 . . . . . . . . . . . . . . 2 . . . . . . Robot Analysis 8 | . 1 . . 1 . . . . . . . . . . . . . . . . . 4 . . 2 . . . . . . Prototype ID Bank 14 | . . . . 1 1 . . . . 3 . . 1 . . . . . 2 . . 4 . 1 . . 1 . . . . Open Door 4 | . . . . . . . . . . . . . . 1 . . . . . . 1 . . . 1 . . 1 . . . Open DSF 4 | . . . . . . . 1 . . . . 1 . . . . . . 1 . . . . . . 1 . . . . . Level Access Points 4 | . . . . . . . . . . . . . . . . . 1 . . . . . . 1 1 . . 1 . . . Branch Access Points 7 | . . . . . 1 . . . . . . 1 . . . . 1 . 1 . . . . 1 . 1 . . 1 . . Emergency Access Points 4 | . . . . . . . . . . . . . . . . . . . . . . . . . 3 . . 1 . . . Machine Index 8 | . . . . . . . . . . . . . . . . . 1 . 1 . . . . 1 1 1 1 1 1 . . Terminal Index 3 | . . . . . . . . . . . . . . . . 1 1 . 1 . . . . . . . . . . . . Fabricator Index 1 | . . . . . . . . . . . . . . . . . . . . . . . . 1 . . . . . . . Alert Level 8 | . . . . . . . . . . . . . . . . . 1 . 2 . . . . 1 2 . . 2 . . . Unreport Threat 27 | . . . . . . . . . . . . . . . . . 6 . 6 . . . . 1 4 . 4 6 . . . Locate Traps 7 | . . . . . . . 1 . . . . . . . . . . . 3 . . . . . 1 . 1 1 . . . Reprogram Traps 3 | . . . . . . . . . . . . . . . . . . . . . . . . . 3 . . . . . . Patrol Status 1 | . . . . . . . . . . . . . . . . . . . . . . . . . . . 1 . . . . Recall Investigation 2 | . . . . . . . . . . . . . . . . . 1 . . . . . . . 1 . . . . . . Recall Reinforcements 3 | . . . . . . . . . . . . . . . . . . . 1 . . . . 1 . . . 1 . . . Recall Assault 1 | . . . . . . . . . . . . . . . . . . . . . . . . . . . . 1 . . . Hauler Manifests 3 | . . . . . . . . . . . . . . . . 1 . . 1 . . . . . 1 . . . . . . Registered Components 4 | . . . . . . . . . . . . . . . . . 1 . 1 . . . . 1 1 . . . . . . Registered Prototypes 3 | . . . . . . . . . . . . . . . . . . . . . . . . 1 1 . . 1 . . . Zone Layout 21 | . . . . . . . . . . . . . . . . 1 2 . 2 . . . . 1 4 2 4 5 . . . Fabricator Hacks 26 | . . . . . 1 . . . . . . . . . . . 6 . 6 . . . . 11 . 1 . . 1 . . Network Status 4 | . . . . . . . . . . . . . . . . . 1 . 1 . . . . 1 . . . . 1 . . Load Schematic 10 | . . . . . . . . . . . . . . . . . 2 . 2 . . . . 5 . 1 . . . . . Build 12 | . . . . . 1 . . . . . . . . . . . 3 . 3 . . . . 5 . . . . . . . Repair Station Hacks 11 | . . . . . . . 2 . . . . . . . . . . . . . . . . 2 . . 4 . . 3 . Scan Component 6 | . . . . . . . 1 . . . . . . . . . . . . . . . . 1 . . 2 . . 2 . Repair 5 | . . . . . . . 1 . . . . . . . . . . . . . . . . 1 . . 2 . . 1 . Recycling Unit Hacks 9 | . 2 . . 3 1 . 1 . . . . . . . . . . . . . . . . 2 . . . . . . . Report Inventory 6 | . 1 . . 2 1 . 1 . . . . . . . . . . . . . . . . 1 . . . . . . . Retrieve Components 3 | . 1 . . 1 . . . . . . . . . . . . . . . . . . . 1 . . . . . . . Scanalyzer 30 | . . . . . 7 . . . . . . . . . . . 12 . . . . . . . . 6 4 . 1 . . Insert Component 18 | . . . . . 4 . . . . . . . . . . . 5 . . . . . . . . 4 4 . 1 . . Analyze 12 | . . . . . 3 . . . . . . . . . . . 7 . . . . . . . . 2 . . . . . Garrison Access Hacks 12 | . . . . . 1 . . . . . . 1 . . . 1 1 . 1 . . . . 3 . . 1 . 3 . . Unlock Access 1 | . . . . . . . . . . . . . . . . 1 . . . . . . . . . . . . . . . Seal Access 11 | . . . . . 1 . . . . . . 1 . . . . 1 . 1 . . . . 3 . . 1 . 3 . . Unauthorized Hacks 74 | . 2 . . 3 2 . . . . . . 1 2 . . 4 8 . 3 . . . . 10 11 5 8 10 4 1 . Terminals 55 | . 1 . . 1 1 . . . . . . 1 2 . . 4 5 . 2 . . . . 7 11 2 8 9 . 1 . Track 20 | . . . . . . . . . . . . . 1 . . . 2 . 1 . . . . 2 4 1 3 5 . 1 . Assimilate 4 | . . . . . . . . . . . . . . . . . . . . . . . . 1 . . 2 1 . . . Botnet 19 | . . . . 1 1 . . . . . . 1 1 . . 1 2 . 1 . . . . 3 3 . 2 3 . . . Detonate 1 | . . . . . . . . . . . . . . . . . . . . . . . . . 1 . . . . . . Disrupt 3 | . . . . . . . . . . . . . . . . . . . . . . . . . 2 1 . . . . . Operators 5 | . 1 . . . . . . . . . . . . . . . 1 . . . . . . 1 1 . 1 . . . . Sabotage 3 | . . . . . . . . . . . . . . . . 3 . . . . . . . . . . . . . . . Fabricators 14 | . . . . . . . . . . . . . . . . . 3 . 1 . . . . 3 . 3 . . 4 . . Report 3 | . . . . . . . . . . . . . . . . . . . . . . . . 1 . 1 . . 1 . . Prioritize 5 | . . . . . . . . . . . . . . . . . 2 . 1 . . . . 2 . . . . . . . Liberate 2 | . . . . . . . . . . . . . . . . . . . . . . . . . . 1 . . 1 . . Fabnet 1 | . . . . . . . . . . . . . . . . . . . . . . . . . . . . . 1 . . Haulers 3 | . . . . . . . . . . . . . . . . . 1 . . . . . . . . 1 . . 1 . . Repair Stations . | . . . . . . . . . . . . . . . . . . . . . . . . . . . . . . . . Recycling Units 4 | . 1 . . 2 1 . . . . . . . . . . . . . . . . . . . . . . . . . . Reject 1 | . . . . . 1 . . . . . . . . . . . . . . . . . . . . . . . . . . Tunnel 3 | . 1 . . 2 . . . . . . . . . . . . . . . . . . . . . . . . . . . Scanalyzers 1 | . . . . . . . . . . . . . . . . . . . . . . . . . . . . 1 . . . Researchers 1 | . . . . . . . . . . . . . . . . . . . . . . . . . . . . 1 . . . Garrison Access . | . . . . . . . . . . . . . . . . . . . . . . . . . . . . . . . . Data Cores Recovered 3 | . . . . . . . . . . . . . . . . . . . 1 . . . . 1 . . 1 . . . . Used 1 | . . . . . . . . . . . . . . . . . . . 1 . . . . . . . . . . . . Hacking Detections 92 | . 2 . . 3 9 . 8 . . . . 2 3 1 . 4 7 . 7 . . . . 10 6 6 9 6 6 3 . Full Trace Events 16 | . 2 . . . . . 1 . . . . . . . . . 2 . 3 . . . . 4 1 . 1 1 1 . . Feedback Events . | . . . . . . . . . . . . . . . . . . . . . . . . . . . . . . . . Feedback Blocked . | . . . . . . . . . . . . . . . . . . . . . . . . . . . . . . . . Robot Schematics Acquired 8 | . . . . . . . . . . 6 . . . . . . . . . . . . . . 2 . . . . . . Robots Built . | . . . . . . . . . . . . . . . . . . . . . . . . . . . . . . . . Authchips . | . . . . . . . . . . . . . . . . . . . . . . . . . . . . . . . . Time . | . . . . . . . . . . . . . . . . . . . . . . . . . . . . . . . . Total Robot Build Rating . | . . . . . . . . . . . . . . . . . . . . . . . . . . . . . . . . Part Schematics Acquired 46 | . . . . 1 3 . 1 . . 11 . . . . . . 13 . 2 . . 3 . 5 5 2 . . . . . Parts Built 14 | . . . . . 1 . . . . . . . . . . . 4 . 4 . . . . 5 . . . . . . . Authchips 1 | . . . . . . . . . . . . . . . . . . . . . . . . 1 . . . . . . . Time 810 | . . . . . 84 . . . . . . . . . . . 226 . 131 . . . . 369 . . . . . . . Total Part Build Rating 106 | . . . . . 6 . . . . . . . . . . . 30 . 25 . . . . 45 . . . . . . . Parts Repaired 5 | . . . . . . . 1 . . . . . . . . . . . . . . . . 1 . . 2 . . 1 . Time 270 | . . . . . . . 44 . . . . . . . . . . . . . . . . 108 . . 88 . . 30 . Parts Recycled . | . . . . . . . . . . . . . . . . . . . . . . . . . . . . . . . . Recycled Matter . | . . . . . . . . . . . . . . . . . . . . . . . . . . . . . . . . Retrieved Matter . | . . . . . . . . . . . . . . . . . . . . . . . . . . . . . . . . Retrieved Components 16 | . 3 . . 3 . . . . . . . . . . . . . . . . . . . 10 . . . . . . . Parts Scanalyzed 10 | . . . . . 3 . . . . . . . . . . . 5 . . . . . . . . 2 . . . . . Part Schematics Acquired 10 | . . . . . 3 . . . . . . . . . . . 5 . . . . . . . . 2 . . . . . Parts Damaged . | . . . . . . . . . . . . . . . . . . . . . . . . . . . . . . . . Bothacking | -11 -10 -10 -10 -8 -6 -6 -6 -6 -6 -6 -5 -5 -5 -5 -5 -5 -4 -4 -4 -4 -4 -4 -3 -3 -3 -2 -2 -2 -1 -1 -1 ------------ Run | Yrd Mat Min Sub Rec Fac Was Fac Low Low Dat Pro Fac Ext Cet Arc Hub Fac Was Fac Upp Upp Zhi Pro Res Tes Res Qua Sec Acc Com Ac0 Used RIF Installer . | . . . . . . . . . . . . . . . . . . . . . . . . . . . . . . . . Robots Hacked . | . . . . . . . . . . . . . . . . . . . . . . . . . . . . . . . . Non-combat . | . . . . . . . . . . . . . . . . . . . . . . . . . . . . . . . . Combat . | . . . . . . . . . . . . . . . . . . . . . . . . . . . . . . . . Robot Hacks Applied . | . . . . . . . . . . . . . . . . . . . . . . . . . . . . . . . . Relay Couplers Released 1 | . . . . . . . . . . . . . . . . 1 . . . . . . . . . . . . . . . Machine Destruction 1 | . . . . . . . . . . . . . . . . 1 . . . . . . . . . . . . . . . Fabnet Peak Effective % . | . . . . . . . . . . . . . . . . . . . . . . . . . . . . . . . . Robots Rewired 21 | . . . . . . . . . 2 . . . 18 . . . . . . . . . . . . . . . . 1 . Allies Hacked 3 | . . . . . . . . . . . 2 . . . . . . . 1 . . . . . . . . . . . . Hacks Repelled . | . . . . . . . . . . . . . . . . . . . . . . . . . . . . . . . . Allies | -11 -10 -10 -10 -8 -6 -6 -6 -6 -6 -6 -5 -5 -5 -5 -5 -5 -4 -4 -4 -4 -4 -4 -3 -3 -3 -2 -2 -2 -1 -1 -1 -------- Run | Yrd Mat Min Sub Rec Fac Was Fac Low Low Dat Pro Fac Ext Cet Arc Hub Fac Was Fac Upp Upp Zhi Pro Res Tes Res Qua Sec Acc Com Ac0 Total Allies 82 | . . 2 . . . 20 . . 2 . . . 30 5 . . . 20 . . . . . . . . 1 1 . 1 . Largest Group 20 | . . 2 2 . . 20 20 12 12 10 10 10 16 8 8 6 . 20 20 . . . . . . . 1 1 . 1 . Highest-Rated Group 831 | . . 52 56 . . 718 718 475 475 368 368 362 443 701 701 511 . 831 831 . . . . . . . 26 26 . 19 . Highest-Rated Ally 159 | . . 31 31 . . 50 50 50 50 50 50 50 159 159 159 96 . 50 50 . . . . . . . 26 26 . 19 . Total Orders 12 | . . . . . 8 . . . . . . . . . 3 1 . . . . . . . . . . . . . . . STAY 2 | . . . . . . . . . . . . . . . 1 1 . . . . . . . . . . . . . . . ROAM 1 | . . . . . . . . . . . . . . . 1 . . . . . . . . . . . . . . . . FOLLOW 1 | . . . . . . . . . . . . . . . 1 . . . . . . . . . . . . . . . . EXPLORE 8 | . . . . . 8 . . . . . . . . . . . . . . . . . . . . . . . . . . Ally Attacks 719 | . . 2 15 . . . 76 24 37 . 31 44 172 48 20 87 . 11 152 . . . . . . . . . . . . Total Damage 28179 | . . 40 207 . . . 3911 1237 2422 . 872 2034 3784 1120 700 3055 . 747 8050 . . . . . . . . . . . . Kills 176 | . . 1 3 . . . 25 10 14 . 11 18 31 6 3 15 . 1 38 . . . . . . . . . . . . Allies Corrupted 2 | . . . . . . . . . . . . . . . . . . . 2 . . . . . . . . . . . . Allies Melted . | . . . . . . . . . . . . . . . . . . . . . . . . . . . . . . . . Intel | -11 -10 -10 -10 -8 -6 -6 -6 -6 -6 -6 -5 -5 -5 -5 -5 -5 -4 -4 -4 -4 -4 -4 -3 -3 -3 -2 -2 -2 -1 -1 -1 ------- Run | Yrd Mat Min Sub Rec Fac Was Fac Low Low Dat Pro Fac Ext Cet Arc Hub Fac Was Fac Upp Upp Zhi Pro Res Tes Res Qua Sec Acc Com Ac0 Robot Analysis Total 8 | . 1 . . 1 . . . . . . . . . . . . . . . . . 4 . . 2 . . . . . . Derelict Logs Recovered 11 | . . 1 2 . . . . 2 1 . 2 . . . . . . . . 2 1 . . . . . . . . . . Drone Launches 8 | . . . . . 8 . . . . . . . . . . . . . . . . . . . . . . . . . . Drone Recoveries 4 | . . . . . 4 . . . . . . . . . . . . . . . . . . . . . . . . . . Decoded 0b10 Intel 56 | . . . . . . . . . . . . 16 40 . . . . . . . . . . . . . . . . . . Items 56 | . . . . . . . . . . . . 16 40 . . . . . . . . . . . . . . . . . . Exploration | -11 -10 -10 -10 -8 -6 -6 -6 -6 -6 -6 -5 -5 -5 -5 -5 -5 -4 -4 -4 -4 -4 -4 -3 -3 -3 -2 -2 -2 -1 -1 -1 ------------- Run | Yrd Mat Min Sub Rec Fac Was Fac Low Low Dat Pro Fac Ext Cet Arc Hub Fac Was Fac Upp Upp Zhi Pro Res Tes Res Qua Sec Acc Com Ac0 Turns Passed 28618 | 99 298 675 3260 244 1696 460 573 432 477 74 315 239 1098 308 8374 570 712 283 675 261 168 145 187 2130 239 811 1460 789 649 916 1 Spaces Moved 19887 | 59 166 315 2381 191 801 274 588 423 423 84 278 266 692 187 925 618 709 325 666 283 203 164 227 2033 262 1094 2026 1123 1436 665 . Core 541 | 3 . . . . 12 . . . . . . . . . 525 . 1 . . . . . . . . . . . . . . Treads 3735 | 1 . . 11 . 27 . . . . . . . 162 171 162 618 451 . . 42 85 164 227 1614 . . . . . . . Legs 847 | . . . . . 83 116 79 . . . . . 291 16 238 . 24 . . . . . . . . . . . . . . Wheels 4137 | 55 166 315 2370 191 679 158 . . . . . . . . . . . . . . . . . . . . . . . 203 . Hover 142 | . . . . . . . . . . . . . . . . . . . . 24 118 . . . . . . . . . . Flight 9638 | . . . . . . . 509 423 423 84 278 266 239 . . . 233 325 666 217 . . . 419 262 1094 2026 852 860 462 . Fastest Speed 50 | 50 95 110 110 125 95 114 69 69 69 69 69 69 50 61 61 61 61 79 79 79 79 79 79 52 52 52 52 52 52 52 . Average Speed 119 | 97 105 121 122 125 140 157 75 69 69 69 69 69 87 105 877 62 70 79 79 79 79 79 79 73 52 52 52 52 55 74 . Slowest Speed 1500 | 160 115 125 240 125 650 192 114 69 69 69 69 69 129 146 1500 157 1200 79 79 79 79 79 79 79 52 52 52 52 113 155 . Overloaded Moves 124 | . . . . . . . . . . . . . . . . . 124 . . . . . . . . . . . . . . Propulsion Burnouts . | . . . . . . . . . . . . . . . . . . . . . . . . . . . . . . . . Robots Hopped 47 | . . . . . . . 1 . . . . 2 7 . . . 1 1 . 1 . . . . 2 13 . 8 9 2 . Cave-ins Triggered . | . . . . . . . . . . . . . . . . . . . . . . . . . . . . . . . . Teleports 2 | . . . . . . . . . . . . . . . . . . . . . . . . . . . . 1 . 1 . Microwarps 56 | . . . . . . . . . . . . . . . . . . . . . . . . . . . . 22 34 . . Exploration Rate (%) 50 | 3 29 78 98 50 21 94 21 75 61 70 47 9 79 66 91 50 14 93 22 55 39 62 42 53 48 32 97 55 31 15 1 Regions Visited 31 Branch Regions 20 Pre-discovered Areas 12 | . 1 1 2 2 . . . 1 . 1 . . . . . . . . . 1 . 3 . . . . . . . . . Known Exits Taken 10 | . . . . . . . 1 . . . 1 1 . . . . . . 1 . . . 1 1 1 1 . 1 1 . . Unknown Exits Taken 17 | 1 1 1 1 1 . . . 1 1 1 . . 1 1 1 1 . . . 1 1 1 . . . . 1 . . 1 . Scrap Searched 19 | . . 1 7 . . . . 3 4 . 3 . . . . . . . . 1 . . . . . . . . . . . Spaces Dug 180 | . . . 35 . . . . . . . . . . . . 5 1 . 1 . . . . 2 2 26 54 24 28 2 . Terrain Destroyed 728 | . 5 3 97 . 4 . . 5 2 . 1 5 38 4 21 48 53 2 6 4 . . 1 36 38 30 89 58 95 43 40 Melee 42 | . . . . . . . . . . . . . . . . . . . . . . . . . 2 12 13 5 8 2 . Projectile 188 | . . . 14 . 4 . . 5 2 . 1 5 38 4 21 34 23 2 6 4 . . 1 15 . 4 2 . 3 . . AOE 498 | . 5 3 83 . . . . . . . . . . . . 14 30 . . . . . . 21 36 14 74 53 84 41 40 Terrain Rammed . | . . . . . . . . . . . . . . . . . . . . . . . . . . . . . . . . Walls Destroyed . | . . . . . . . . . . . . . . . . . . . . . . . . . . . . . . . . Machines Disabled . | . . . . . . . . . . . . . . . . . . . . . . . . . . . . . . . . Actions | -11 -10 -10 -10 -8 -6 -6 -6 -6 -6 -6 -5 -5 -5 -5 -5 -5 -4 -4 -4 -4 -4 -4 -3 -3 -3 -2 -2 -2 -1 -1 -1 --------- Run | Yrd Mat Min Sub Rec Fac Was Fac Low Low Dat Pro Fac Ext Cet Arc Hub Fac Was Fac Upp Upp Zhi Pro Res Tes Res Qua Sec Acc Com Ac0 Total 23200 | 80 230 594 2586 196 1158 302 700 547 584 99 391 294 1057 280 1097 743 861 349 799 302 210 173 229 2521 341 1203 2313 1037 979 944 1 Wait 2136 | . 8 260 31 1 119 21 85 116 120 16 109 13 95 70 82 63 109 20 79 9 . 1 1 320 48 27 142 56 2 113 . Move 18983 | 58 165 314 2380 190 801 273 585 422 422 83 277 261 682 186 924 618 707 322 665 280 202 163 226 2032 257 1069 2025 857 877 660 . Hop 40 | . . . . . . . 1 . . . . 2 3 . . . 1 1 . 1 . . . . 2 12 . 8 7 2 . Pick Up 153 | 5 13 1 8 1 10 2 3 1 4 . . 1 4 6 4 2 2 1 7 1 3 1 . 33 3 2 13 1 9 12 . Fast Attach 158 | 6 . . 9 1 23 . 6 . 1 . . 1 2 2 3 6 2 1 4 1 1 2 . 16 3 8 17 21 2 20 . Attach 59 | 1 3 1 1 . 7 . . . . . . . 3 . 2 1 3 . 2 . . 1 . 4 . 2 7 1 13 7 . Detach 12 | . . . . . 2 . . . . . . . . . . . 1 . 1 . . . . 2 . 1 2 . 1 2 . Swap 125 | 1 6 3 15 1 5 2 2 . 2 . 1 2 6 . . 6 2 . 1 . 2 . . 18 5 13 9 10 7 6 . Drop 260 | . 2 2 26 2 28 3 9 1 5 . . 2 9 7 7 9 3 3 10 2 2 2 . 28 8 5 28 11 25 21 . Fire 796 | 9 33 13 114 . 163 . 9 7 11 . 4 12 53 9 75 35 31 1 8 7 . 3 2 63 . 27 18 9 23 56 1 Melee 211 | . . . . . . . . . . . . . . . . . . . . . . . . 5 9 37 52 63 12 33 . Ram 2 | . . . . . . . . . . . . . . . . 1 . . . . . . . . . . . . 1 . . Kick . | . . . . . . . . . . . . . . . . . . . . . . . . . . . . . . . . Crush 4 | . . . . . . . . . . . . . 1 . . 2 . . . 1 . . . . . . . . . . . Escape Stasis 5 | . . . . . . . . . . . . . 5 . . . . . . . . . . . . . . . . . . Rewire 226 | . . . . . . 1 . . 19 . . . 194 . . . . . . . . . . . . . . . . 12 . Trap 24 | . . . 2 . . . . . . . . . . . . . . . 22 . . . . . . . . . . . . Miscellaneous 6 | . . . . . . . . . . . . . . . . . . . . . . . . . 6 . . . . . . Route ------- -11/Scrapyard -10/Materials -10/Mines (discovered 2 exits: [*Mat] / *Sub) -10/Subcaves (discovered 3 exits: [*Mat x2] / *Rec) -8/Recycling -6/Factory (discovered 4 exits: *Fac x2 / Low x2) -6/Waste -6/Factory -6/Lower Caves -6/Lower Caves (discovered 2 exits: Fac / *Dat) -6/Data Miner -5/Proximity Caves -5/Factory (discovered 4 exits: *Upp x2 / *Ext x2) -5/Extension (discovered 2 exits: *Fac / *Cet) -5/Cetus (discovered 2 exits: *Fac / [*Arc]) -5/Archives (discovered 3 exits: *Fac / *Hub x2) -5/Hub_04(d) (discovered 2 exits: *Fac x2) -4/Factory (discovered 6 exits: Res x4 / *Upp x2) -4/Waste -4/Factory (discovered 3 exits: *Res / *Upp x2) -4/Upper Caves -4/Upper Caves -4/Zhirov -3/Proximity Caves -3/Research (discovered 6 exits: *Res x3 / Arm / *Tes x2) -3/Testing -2/Research (discovered 2 exits: *Qua x2) -2/Quarantine (discovered 2 exits: *Acc / *Sec) -2/Section 7 -1/Access -1/Command -1/Access_0 History --------- Turn | Location | Event 8 | -11/Scrapyard | Discovered new exit (range 16) 100 | -11/Scrapyard | Entered Materials 298 | -10/Materials | Lost 3 parts (1n1u1w) 304 | -10/Materials | Build established: Mutant 385 | -10/Materials | Discovered new exit (range 8) 398 | -10/Materials | Entered Mines 399 | -10/Mines | Learned location of Storage (-8) 442 | -10/Mines | Learned Materials emergency access door positions 553 | -10/Mines | Assembled infested the area 558 | -10/Mines | Assisted by a Guerilla fighting off Assembled 760 | -10/Mines | Discovered new exit (range 11) 1041 | -10/Mines | Discovered new exit (range 5) 1073 | -10/Mines | Entered Subcaves 1073 | -10/Subcaves | Accompanied by 2 allies 1078 | -10/Subcaves | Led the pair of lost Derelicts to an unsafe place 1081 | -10/Subcaves | Learned 4 Materials zone layouts 1103 | -10/Subcaves | Discovered new exit (range 7) 1120 | -10/Subcaves | A Subdweller sparked back to life 1120 | -10/Subcaves | A Subdweller sparked back to life 1124 | -10/Subcaves | Shifting Twisted Machinery released Piercing Trap 1132 | -10/Subcaves | Found Prototype Leg 1204 | -10/Subcaves | A swath of the cavern ceiling suddenly collapsed 1238 | -10/Subcaves | Ambushed by angry Subdweller bent on revenge 1284 | -10/Subcaves | Shifting Twisted Machinery released Spk. Treads 1313 | -10/Subcaves | Shifting Twisted Machinery released Sub. Machine Gun 1486 | -10/Subcaves | Shifting Twisted Machinery released Flamer 1710 | -10/Subcaves | Shifting Twisted Machinery released Battle Cannon 1940 | -10/Subcaves | Visited Clippyterm 1943 | -10/Subcaves | Learned location of Extension (-5) 1996 | -10/Subcaves | Learned location of Zion (-7) 2203 | -10/Subcaves | Disturbed a concealed Subdweller 2214 | -10/Subcaves | Disturbed a concealed Subdweller 2454 | -10/Subcaves | Ambushed by angry Subdweller bent on revenge 2638 | -10/Subcaves | Discovered new exit (range 14) 3777 | -10/Subcaves | Discovered new exit (range 9) 4308 | -10/Subcaves | Core integrity fell below 50% 4333 | -10/Subcaves | Entered Recycling 4340 | -8/Recycling | Found Scrap Engine 4571 | -8/Recycling | Discovered new exit (range 6) 4577 | -8/Recycling | Entered Factory 4577 | -6/Factory | Evolved 8 slots: Propulsion x2, Utility x5, Weapon x1 4815 | -6/Factory | Identified Arachnoskeleton 4870 | -6/Factory | Identified exit to Lower Caves 5041 | -6/Factory | Lost 3 parts (1n2u) 5291 | -6/Factory | Lost 3 parts (1p2n) 5641 | -6/Factory | Fabricated Hvy. Gatling Laser (x1) 5937 | -6/Factory | Discovered new exit (range 8) 6031 | -6/Factory | Discovered new exit (range 8) 6065 | -6/Factory | Garrison activated, responded to threat 6218 | -6/Factory | Garrison activated, responded to threat 6273 | -6/Factory | Sucked down chute 6273 | -6/Factory | Entered Waste 6274 | -6/Waste | Joined by Warlord forces that had cleared the area 6309 | -6/Waste | Build established: Construct 6605 | -6/Waste | Found Damper Plating 6697 | -6/Waste | Discovered new exit (range 15) 6733 | -6/Waste | Entered Factory 6733 | -6/Factory | Accompanied by 20 allies 6983 | -6/Factory | Repaired Energy Filter 7103 | -6/Factory | Lost 4 allies 7276 | -6/Factory | Discovered exit to Lower Caves (range 9) 7306 | -6/Factory | Entered Lower Caves 7306 | -6/Lower Caves | Accompanied by 12 allies 7320 | -6/Lower Caves | Encountered a Warlord checkpoint 7324 | -6/Lower Caves | Learned Factory garrison access intel 7711 | -6/Lower Caves | Discovered new exit (range 5) 7738 | -6/Lower Caves | Entered another Lower Caves area 7738 | -6/Lower Caves | Accompanied by 12 allies 7740 | -6/Lower Caves | Attracted the attention of an 0b10 outpost 7796 | -6/Lower Caves | Lost 4 allies 7910 | -6/Lower Caves | Encountered a Warlord checkpoint 8110 | -6/Lower Caves | Discovered new exit (range 6) 8118 | -6/Lower Caves | Identified exit to Factory 8144 | -6/Lower Caves | Attacked by a delusional Derelict stockpiling parts 8215 | -6/Lower Caves | Entered Data Miner 8215 | -6/Data Miner | Accompanied by 10 allies 8215 | -6/Data Miner | Discovered new exit (range 6) 8229 | -6/Data Miner | Met Data Miner 8243 | -6/Data Miner | Learned location of Section 7 (-2) 8243 | -6/Data Miner | Acquired the access code to Warlord's prototype stash 8253 | -6/Data Miner | Received God Mode back door access code from Data Miner 8289 | -6/Data Miner | Entered Proximity Caves 8289 | -5/Proximity Caves | Accompanied by 10 allies 8299 | -5/Proximity Caves | Learned 12 Factory zone layouts 8403 | -5/Proximity Caves | Spotter reported a threat 8431 | -5/Proximity Caves | Spotter reported a threat 8503 | -5/Proximity Caves | Attracted the attention of an 0b10 checkpoint 8586 | -5/Proximity Caves | Discovered exit to Factory (range 9) 8604 | -5/Proximity Caves | System corruption reached 10% 8604 | -5/Proximity Caves | Entered Factory 8604 | -5/Factory | Accompanied by 10 allies 8604 | -5/Factory | Evolved 2 slots: Power x1, Weapon x1 8606 | -5/Factory | Loaded intel: 4 garrison access locations 8765 | -5/Factory | Discovered new exit (range 15) 8783 | -5/Factory | Identified exit to Upper Caves 8783 | -5/Factory | Identified exit to Extension 8843 | -5/Factory | Entered Extension 8843 | -5/Extension | Accompanied by 2 allies 8852 | -5/Extension | Lost 4 allies 8890 | -5/Extension | Rescued a captive Derelict 8890 | -5/Extension | Rescued a captive Derelict 8992 | -5/Extension | Rescued a captive Derelict 8992 | -5/Extension | Rescued a captive Derelict 9037 | -5/Extension | Rescued a captive Derelict 9124 | -5/Extension | Rescued a captive Derelict 9124 | -5/Extension | Rescued a captive Derelict 9131 | -5/Extension | Spotted B-75 Beast 9136 | -5/Extension | Spotted B-75 Beast 9143 | -5/Extension | First assault squad dispatched 9151 | -5/Extension | Allies destroyed B-75 Beast 9165 | -5/Extension | Allies destroyed B-75 Beast 9218 | -5/Extension | Disrupted transfer network 9259 | -5/Extension | Lost 14 allies 9335 | -5/Extension | Lost 3 parts (2u1w) 9448 | -5/Extension | Rescued a captive Derelict 9473 | -5/Extension | Rescued a captive Derelict 9474 | -5/Extension | Rescued a captive Derelict 9506 | -5/Extension | Rescued a captive Derelict 9859 | -5/Extension | Lost 4 allies 9865 | -5/Extension | Rescued A7 9897 | -5/Extension | Discovered new exit (range 10) 9898 | -5/Extension | Discovered new exit (range 6) 9937 | -5/Extension | Disrupted transfer network 9941 | -5/Extension | Entered Cetus 9941 | -5/Cetus | Accompanied by 5 allies (A7) 9946 | -5/Cetus | Acquired a Cetus Manufacturing Module code from A7 9949 | -5/Cetus | Build established: Commander-Construct 9958 | -5/Cetus | Spotted Cetus Guard 9958 | -5/Cetus | Spotted Cetus Guard 9961 | -5/Cetus | Spotted Cetus Guard 9966 | -5/Cetus | Spotted Cetus Guard 9966 | -5/Cetus | Allies destroyed Cetus Guard 9973 | -5/Cetus | Allies destroyed Cetus Guard 9974 | -5/Cetus | Destroyed Cetus Guard 9977 | -5/Cetus | Allies destroyed Cetus Guard 10026 | -5/Cetus | Started Cetus Manufacturing Module 10034 | -5/Cetus | Escorted A7 to Cetus Mainframe 10051 | -5/Cetus | Manufactured an Enhanced Grunt 10070 | -5/Cetus | Discovered new exit (range 15) 10076 | -5/Cetus | Manufactured an Enhanced Grunt 10101 | -5/Cetus | Manufactured an Enhanced Grunt 10121 | -5/Cetus | Spotted Cetus Guard 10121 | -5/Cetus | Spotted Cetus Guard 10126 | -5/Cetus | Manufactured an Enhanced Grunt 10129 | -5/Cetus | Spotted Cetus Guard 10129 | -5/Cetus | Spotted Cetus Guard 10133 | -5/Cetus | Destroyed Cetus Guard 10143 | -5/Cetus | Allies destroyed Cetus Guard 10144 | -5/Cetus | Destroyed Cetus Guard 10146 | -5/Cetus | Allies destroyed Cetus Guard 10149 | -5/Cetus | Discovered new exit (range 15) 10151 | -5/Cetus | Manufactured an Enhanced Grunt 10155 | -5/Cetus | Met Revision 17 10249 | -5/Cetus | Entered Archives 10249 | -5/Archives | Accompanied by 8 allies (A7) 10254 | -5/Archives | Received a hacking code to weaken MAIN.C 10309 | -5/Archives | Discovered new exit (range 16) 10380 | -5/Archives | Discovered new exit (range 15) 10440 | -5/Archives | Discovered new exit (range 16) 18623 | -5/Archives | Entered Hub_04(d) 18623 | -5/Hub_04(d) | Accompanied by 6 allies 18623 | -5/Hub_04(d) | Discovered new exit (range 11) 18715 | -5/Hub_04(d) | Identified exit to Garrison 18742 | -5/Hub_04(d) | Discovered new exit (range 12) 18803 | -5/Hub_04(d) | Found Prototype Device 18803 | -5/Hub_04(d) | Identified Exp. Thermal Shield 18923 | -5/Hub_04(d) | First assault squad dispatched 19004 | -5/Hub_04(d) | System corruption reached 10% 19038 | -5/Hub_04(d) | Destroyed 11 combat bots 19131 | -5/Hub_04(d) | Network Hub disabled 19134 | -5/Hub_04(d) | Network Hub disabled 19144 | -5/Hub_04(d) | Network Hub disabled 19153 | -5/Hub_04(d) | Spotted Lightning 19161 | -5/Hub_04(d) | Spotted Lightning 19187 | -5/Hub_04(d) | Network Hub disabled 19193 | -5/Hub_04(d) | Entered Factory 19193 | -4/Factory | Evolved 2 slots: Utility x2 19320 | -4/Factory | Found Heavy Servo Lattice 19336 | -4/Factory | Identified exit to Upper Caves 19357 | -4/Factory | Identified exit to Research 19362 | -4/Factory | Fabricated Enh. Nova Cannon? 19433 | -4/Factory | Fabricated Hvy. Siege Treads (x1) 19436 | -4/Factory | Build established: Hacker-Construct 19657 | -4/Factory | Fabricated Adv. Surge Thruster (x2) 19905 | -4/Factory | Sucked down chute 19905 | -4/Factory | Entered Waste 19906 | -4/Waste | Joined by Warlord forces that had cleared the area 19934 | -4/Waste | Lost 3 parts (3w) 20004 | -4/Waste | Found Prototype Launcher 20004 | -4/Waste | Identified Enh. Gamma Bomb Array 20105 | -4/Waste | A Compactor rumbled back to life 20105 | -4/Waste | Spotted C-40 Crusher 20108 | -4/Waste | Allies destroyed C-40 Crusher 20120 | -4/Waste | Discovered new exit (range 15) 20188 | -4/Waste | Entered Factory 20188 | -4/Factory | Accompanied by 20 allies 20569 | -4/Factory | Discovered exit to Research (range 7) 20646 | -4/Factory | Lost 4 allies 20654 | -4/Factory | Fabricated Quantum Capacitor (x2) 20703 | -4/Factory | Fabricated Exp. Utility Shielding (x1) 20757 | -4/Factory | Lost 6 allies 20773 | -4/Factory | Central database locked down 20829 | -4/Factory | Fabricated Adv. Hacking Suite? 20863 | -4/Factory | Entered Upper Caves 20890 | -4/Upper Caves | Learned location of Testing (-3) 20907 | -4/Upper Caves | Spotted B-86 Titan 20947 | -4/Upper Caves | Destroyed B-86 Titan 20996 | -4/Upper Caves | Encountered a Warlord checkpoint 20999 | -4/Upper Caves | Learned location of 1 exit from Research 21120 | -4/Upper Caves | Discovered new exit (range 7) 21124 | -4/Upper Caves | Entered another Upper Caves area 21198 | -4/Upper Caves | Learned Research garrison access intel 21288 | -4/Upper Caves | Discovered new exit (range 5) 21292 | -4/Upper Caves | Entered Zhirov 21292 | -4/Zhirov | Discovered new exit (range 3) 21307 | -4/Zhirov | Met Zhirov 21321 | -4/Zhirov | Learned location of Command (-1) 21335 | -4/Zhirov | Zhirov requested help retrieving the SGEMP Prototype 21348 | -4/Zhirov | Found Alien Artifact 21348 | -4/Zhirov | Identified Integrated Dissipator 21348 | -4/Zhirov | Installed Integrated Dissipator, increased core heat dissipation (+20) 21405 | -4/Zhirov | Found Alien Artifact 21437 | -4/Zhirov | Entered Proximity Caves 21439 | -3/Proximity Caves | Attracted the attention of an 0b10 checkpoint 21577 | -3/Proximity Caves | Build established: Scavenger-Construct 21610 | -3/Proximity Caves | Discovered exit to Research (range 10) 21624 | -3/Proximity Caves | Entered Research 21624 | -3/Research | Evolved 2 slots: Propulsion x1, Utility x1 21625 | -3/Research | Identified exit to Armory 21626 | -3/Research | Identified exit to Research 21627 | -3/Research | Loaded intel: 4 garrison access locations 21824 | -3/Research | Revision forces began assault on 0b10 21842 | -3/Research | Identified exit to Testing 21899 | -3/Research | Met up with Revision 17++ 21920 | -3/Research | Build established: Hacker-Construct 22071 | -3/Research | Spotted B-86 Titan 22072 | -3/Research | Spotted B-86 Titan 22081 | -3/Research | Destroyed B-86 Titan 22273 | -3/Research | Fabricated Zero-point Reactor? 22324 | -3/Research | Research terminal network offline 22335 | -3/Research | Fabricated Point Singularity Launcher (x1) 22393 | -3/Research | Spotted Striker 22393 | -3/Research | Spotted Striker 22421 | -3/Research | Destroyed Striker 22432 | -3/Research | Lost 8 allies 22847 | -3/Research | Fabricated Point Singularity Launcher (x1) 23019 | -3/Research | Repaired Centrium Medium Armor Plating 23122 | -3/Research | Found Prototype Processor 23122 | -3/Research | Identified Exp. Core Analyzer 23132 | -3/Research | Found Prototype Processor 23132 | -3/Research | Identified Exp. Targeting Computer 23338 | -3/Research | Fabricated Point Singularity Launcher (x1) 23361 | -3/Research | Spotted Striker 23362 | -3/Research | Core integrity fell below 50% 23387 | -3/Research | Destroyed Striker 23407 | -3/Research | Lost 3 parts (1p1u1w) 23660 | -3/Research | Found Exp. Targeting Computer 23672 | -3/Research | Spotted Striker 23672 | -3/Research | Spotted Executioner 23675 | -3/Research | Fabricated Point Singularity Launcher? 23689 | -3/Research | Destroyed Striker 23699 | -3/Research | Destroyed Executioner 23708 | -3/Research | Found Exp. Core Analyzer 23715 | -3/Research | Found Exp. Core Analyzer 23754 | -3/Research | Entered Testing 23762 | -3/Testing | Found Prototype Hackware 23762 | -3/Testing | Identified System Mapper 23817 | -3/Testing | Found Prototype Launcher 23817 | -3/Testing | Identified Z-bomb Delivery System 23839 | -3/Testing | Spotted PD-VMDS7KCBW6 23982 | -3/Testing | Found Prototype Protection 23993 | -3/Testing | Entered Research 23993 | -2/Research | Evolved 2 slots: Utility x1, Weapon x1 23996 | -2/Research | Identified exit to DSF 24221 | -2/Research | Spotted B-90 Cyclops 24437 | -2/Research | Identified SHELL Armor 24437 | -2/Research | Identified Transdimensional Reconstructor 24617 | -2/Research | Spotted B-90 Cyclops 24628 | -2/Research | Build established: Hacker-Gunner 24682 | -2/Research | Destroyed B-90 Cyclops 24692 | -2/Research | Found Prototype Hackware 24692 | -2/Research | Identified Exp. System Shield 24695 | -2/Research | Identified exit to Quarantine 24804 | -2/Research | Entered Quarantine 24817 | -2/Quarantine | Found Alien Artifact 24833 | -2/Quarantine | Cryocooling Duct disabled 24848 | -2/Quarantine | Ambient heat levels rising (+20) 24848 | -2/Quarantine | Non-combat units ordered to evacuate 24877 | -2/Quarantine | Found Alien Artifact 24877 | -2/Quarantine | Identified Phase Redirector 24902 | -2/Quarantine | Found Alien Slashing Weapon 24902 | -2/Quarantine | Identified Sigix Broadsword 24908 | -2/Quarantine | Found Prototype Device 24908 | -2/Quarantine | Identified Exp. EM Disruption Field 24913 | -2/Quarantine | Found Exp. EM Disruption Field 24985 | -2/Quarantine | Repaired Adv. Force Field 25044 | -2/Quarantine | Repaired Centrium Medium Armor Plating 25079 | -2/Quarantine | Found Alien Artifact 25153 | -2/Quarantine | Found Alien Energy Cannon 25153 | -2/Quarantine | Identified Core Cannon 25427 | -2/Quarantine | Discovered new exit (range 18) 25440 | -2/Quarantine | Identified exit to Access 25444 | -2/Quarantine | Identified Terrabomb 25516 | -2/Quarantine | Found Transdimensional Reconstructor 25554 | -2/Quarantine | First assault squad dispatched 25640 | -2/Quarantine | Destroyed 7 combat bots 25658 | -2/Quarantine | Found Alien Artifact 25696 | -2/Quarantine | Identified Core Reset Matrix 25772 | -2/Quarantine | Found Alien Artifact 25803 | -2/Quarantine | Identified Phase Armor 25810 | -2/Quarantine | Found Alien Artifact 25817 | -2/Quarantine | Found Alien Artifact 25845 | -2/Quarantine | Identified Hpw. Transdimensional Reconstructor 25845 | -2/Quarantine | Identified Dimensional Node Initializer 26105 | -2/Quarantine | Found Alien Impact Weapon 26179 | -2/Quarantine | Identified Core Stripper 26189 | -2/Quarantine | Spotted Fortress 26262 | -2/Quarantine | Discovered new exit (range 5) 26264 | -2/Quarantine | Entered Section 7 26466 | -2/Section 7 | Build established: Hacker-Mutant 26552 | -2/Section 7 | First assault squad dispatched 26635 | -2/Section 7 | Spotted S7 Guard 26642 | -2/Section 7 | Destroyed S7 Guard 26692 | -2/Section 7 | Found Alien Artifact 26692 | -2/Section 7 | Identified Core Regenerator 26692 | -2/Section 7 | Used Core Regenerator, restored core integrity (+186) 26777 | -2/Section 7 | Spotted S7 Guard 26783 | -2/Section 7 | Found Alien Artifact 26783 | -2/Section 7 | Identified Core Membrane 26783 | -2/Section 7 | Installed Core Membrane, gained immunity to corruption 26890 | -2/Section 7 | Warped through subspace 26890 | -2/Section 7 | Spotted Alpha 7 26891 | -2/Section 7 | Spotted Alpha 7 26893 | -2/Section 7 | Found Alien Artifact 26893 | -2/Section 7 | Identified Microwarp Drive 26902 | -2/Section 7 | Spotted B-99 Colossus 26914 | -2/Section 7 | Found Alien Artifact 26914 | -2/Section 7 | Identified Integrated Reactor 26914 | -2/Section 7 | Installed Integrated Reactor, increased core energy generation (+10) 26916 | -2/Section 7 | Found Integrated Reactor 26916 | -2/Section 7 | Installed Integrated Reactor, increased core energy generation (+10) 26919 | -2/Section 7 | Found Integrated Reactor 26919 | -2/Section 7 | Installed Integrated Reactor, increased core energy generation (+10) 26930 | -2/Section 7 | Found Alien Artifact 26930 | -2/Section 7 | Identified LRC Insulator 26930 | -2/Section 7 | Installed LRC Insulator, gained EM resistance (25) 26934 | -2/Section 7 | Found Alien Artifact 26934 | -2/Section 7 | Identified LRC Energy Well 26934 | -2/Section 7 | Installed LRC Energy Well, increased energy storage capacity (+250) 26936 | -2/Section 7 | Found Alien Artifact 26936 | -2/Section 7 | Identified LRC Inertial Stabilizer 26936 | -2/Section 7 | Installed LRC Inertial Stabilizer, increased mass support (+10) 27046 | -2/Section 7 | Spotted B-90 Cyclops 27053 | -2/Section 7 | Entered Access 27053 | -1/Access | Evolved 2 slots: Utility x2 27062 | -1/Access | Identified Subatomic Replicator 27303 | -1/Access | Search patrols dispatched 27391 | -1/Access | Garrison activated, responded to threat 27441 | -1/Access | Destroyed 15 combat bots 27553 | -1/Access | First assault squad dispatched 27560 | -1/Access | Identified exit to Command 27584 | -1/Access | Used Subatomic Replicator to create Alien Artifact 27590 | -1/Access | Core integrity fell below 50% 27702 | -1/Access | Entered Command 27888 | -1/Command | Build established: Scavenger-Gunner 27993 | -1/Command | First assault squad dispatched 28046 | -1/Command | Found Enh. Force Lance 28131 | -1/Command | Destroyed 10 combat bots 28259 | -1/Command | Incoming assault squad redirected 28468 | -1/Command | Repaired Broken Matter Filter 28471 | -1/Command | Incoming assault squad redirected 28596 | -1/Command | Identified Supercharged TR 28596 | -1/Command | Warped through subspace to slip node 28596 | -1/Command | Discovered new exit (range 4) 28597 | -1/Command | Core integrity fell below 20% 28618 | -1/Command | Entered Access_0 28618 | -1/Access_0 | Destroyed A8 28619 | -1/Access_0 | Destroyed by Architect with Modified Sigix Sheargun Last Messages --------------- 28600_ The unstable cave ceiling collapses. 28602_ Acquired 15 matter. 28605_ Dropped Microwarp Drive. 28607_ The unstable cave ceiling collapses. 28607_ Dropped Sml. Matter Pod. 28608_ The unstable cave ceiling collapses. 28608_ Extracted 50 matter. 28610_ The unstable cave ceiling collapses. 28610_ Acquired Microwarp Drive. 28611_ The unstable cave ceiling collapses. 28613_ Acquired Sml. Matter Pod. 28614_ The unstable cave ceiling collapses. LOCATION=UNKNOWN AMBIENT_HEAT=-20 GOAL=ESCAPE 28618_ Destroyed Imp. Phase Shifter. 28618_ Enhanced Grunt destroyed. 28618_ A8: "To think I even helped you..." 28618_ A8 destroyed. 28619_ Penetrated by Quantum Shear. Map ----- +----------------------------------------------------+ | ???????????????????????????????????????? | | ???????????????????????????????????????? | | ???????????????????????????????????????? | | ???????????????????????????????????????? | | ???????????????????????????????????????? | | ???????????????????????????????????????? | | ???????????????????????????????????????? | | ???????????????????????????????????????? | | ???????????????????????????????????????? | | ???????????????????????????????????????? | | ???????????????????????????????????????? | | ???????????????????????????????????????? | | ???????????????????????????????????????? | | ???????????????????????????????????????? | | ???????????????????????????????????????? | | ???????????????????????????????????????? | | ???????????????????????????????????????? | | ?????????????#?????????????????????????? | | ???????????? #???????????????????????? | | ???????????? ##????????????????????? | | ???????????? ##?????????????????? | | ??????????? ########?????????? | | ??????????? # ##????????? | | ?????????? ?????????? | | ?????????? ###????????? | | ?????????? 0 @ ;#????????? | | ?????????? ####????????? | | ?????????????### ??????????? | | ???????????????# ### ##### ##?????????? | | ???????????????????#??????###??????????? | | ???????????????????????????????????????? | | ???????????????????????????????????????? | | ???????????????????????????????????????? | | ???????????????????????????????????????? | | ???????????????????????????????????????? | | ???????????????????????????????????????? | | ???????????????????????????????????????? | | ???????????????????????????????????????? | | ???????????????????????????????????????? | | ???????????????????????????????????????? | | ???????????????????????????????????????? | | ???????????????????????????????????????? | | ???????????????????????????????????????? | | ???????????????????????????????????????? | | ???????????????????????????????????????? | | ???????????????????????????????????????? | | ???????????????????????????????????????? | | ???????????????????????????????????????? | | ???????????????????????????????????????? | | ???????????????????????????????????????? | +----------------------------------------------------+ Best States ------------- Heat Dissipation 97 Coolant Potential 120 Energy Generation 89 Energy Capacity 1308 Matter Stores 350 Matter Capacity 350 Sight Range 16 Robot Scan Range 16 Terrain Scan Density 10 Cloak Strength 2 Armor Coverage 900 Resistance: TH 20 Resistance: EM 100 Core Shielding 20 Utility Shielding 90 Phase Shifting 15 Evasion (%) 73 Targeting Accuracy 20 Launcher Accuracy 40 Target Analysis 7 Core Analysis 8 Armor Integrity Analysis 40 Recoil Reduction 4 Matter Filtering 45 Energy Filtering 30 Offensive Hacking 69 Defensive Hacking 16 Authchip Count 1 Trap Extractor Capacity 6 Item Schematics ----------------- Hacking Suite | -8/Recycling | Hacked Humpback | -6/Factory | Scanalyzed Mak. Leg | -6/Factory | Scanalyzed Mak. Thermal Plating | -6/Factory | Scanalyzed Matter Compressor | -6/Factory | Hacked Combat Drone Bay | -6/Data Miner | Free Lgt. Regenerative Plating | -6/Data Miner | Free Enh. Flexi-carbon Leg | -6/Data Miner | Free Exp. Heat Sink | -6/Data Miner | Free Plasma Sword | -6/Data Miner | Free Imp. Linear Gravjet | -6/Data Miner | Free Adv. Particle Charger | -6/Data Miner | Free Hvy. Disruptor Cannon | -6/Data Miner | Free Lrn. Terrain Scanner | -6/Data Miner | Free Hvy. Gauss Cannon | -6/Data Miner | Free Adv. Corruption Screen | -6/Data Miner | Free Adv. Hacking Suite | -4/Factory | Hacked Exp. Utility Shielding | -4/Factory | Hacked Prc. Matter Filter | -4/Factory | Hacked Imp. Powered Armor | -4/Factory | Hacked Adv. Surge Thruster | -4/Factory | Hacked Hvy. Siege Treads | -4/Factory | Hacked Enh. Autogun | -4/Factory | Hacked Cld. Proton Cannon | -4/Factory | Hacked Centrium Medium Armor Plating | -4/Factory | Scanalyzed Heavy Servo Lattice | -4/Factory | Scanalyzed System Restoration Module | -4/Factory | Scanalyzed Adv. Datajack | -4/Factory | Scanalyzed Micro-nuke Launcher | -4/Factory | Scanalyzed Enh. Nova Cannon | -4/Factory | Hacked Cld. Gravmag System | -4/Factory | Hacked Assault Drone Bay | -4/Zhirov | Free Exp. Optical Array | -4/Zhirov | Free Imp. Arc Thrower | -4/Zhirov | Free Biometal Heavy Treads | -3/Research | Hacked Antigrav Array | -3/Research | Hacked Point Singularity Launcher | -3/Research | Hacked Exp. Matter Compressor | -3/Research | Hacked Zero-point Reactor | -3/Research | Hacked Cld. Airjet | -3/Testing | Hacked Cmb. Linear Gravjet | -3/Testing | Hacked Com. HERF Cannon | -3/Testing | Hacked Hvy. Regenerative Plating | -3/Testing | Hacked Med. Regenerative Plating | -3/Testing | Hacked Imp. Quantum Reactor | -2/Research | Scanalyzed Adv. System Restoration Module | -2/Research | Scanalyzed Robot Schematics ------------------ R-10 Processor | -6/Data Miner | Free B-60 Warrior | -6/Data Miner | Free B-48 Gladiator | -6/Data Miner | Free M-22 Extractor | -6/Data Miner | Free Y-64 Sentinel | -6/Data Miner | Free L-61 Swordsman | -6/Data Miner | Free I-47 Archangel | -3/Testing | Hacked B-74 Champion | -3/Testing | Hacked Fabricated ------------ Hvy. Gatling Laser | x1 | -6/Factory | Preloaded Enh. Nova Cannon | x1 | -4/Factory | Preloaded Hvy. Siege Treads | x1 | -4/Factory Adv. Surge Thruster | x2 | -4/Factory Quantum Capacitor | x2 | -4/Factory | Preloaded Exp. Utility Shielding | x1 | -4/Factory Adv. Hacking Suite | x1 | -4/Factory Zero-point Reactor | x1 | -3/Research | Authchip Point Singularity Launcher | x1 | -3/Research Point Singularity Launcher | x1 | -3/Research Point Singularity Launcher | x1 | -3/Research Point Singularity Launcher | x1 | -3/Research Alien Tech Used ----------------- Integrated Dissipator Phase Redirector Sigix Broadsword Core Cannon Phase Armor Core Stripper Core Regenerator Core Membrane Transdimensional Reconstructor Microwarp Drive Integrated Reactor LRC Insulator LRC Energy Well LRC Inertial Stabilizer Subatomic Replicator Supercharged TR Achievements -------------- None Challenges ------------ None Game ------ Seed FieldAlloyClaymores Manual? 0 Play Time 06:57:23 Cumulative 755.4 hours Start 2024.05.21 @ 14:05:32 End 2024.05.22 @ 00:27:23 Sessions 5 Manual Loads 0 Difficulty Rogue Special Mode None Game No. 307 Rogue 277 Adventurer 3 Explorer 27 Win Type - Total 16 Types 10/3/1/1/0/1/0/0/0 Lore% 92 Gallery% 97 Achievement% 85 Wizard Run 0 Options --------- Layout 2 ASCII 0 Keyboard 0 Movement Numpad Keybinds 0 Fullscreen 2 Font 24/Smallcaps Map View 50x44 Zoom Use 0% Tactical HUD 1 Map Filters NONE Filters NONE Steam 1 RUN: caed24cc-f8f4-42f0-9a14-6f43e32b09bd